{"text_format":"1","workbook":"xlsx","n_sheets":5,"sheets":["CONTROL","Instructions-English","Instructions-Francais","FB114 Principal Yearly Report","Tables"],"not_rendered":{"charts":0,"images":0,"macros":1,"external_links":5,"defined_names":163,"comments":0,"pivot_tables":0},"unopened":[],"bounds":{"document_bytes":16777216,"sheet_cells":100000,"rows_first":2000,"rows_last":500,"rows_between":2000,"halvings":0,"cell_chars":16384,"cell_head_chars":4096},"cells_cut":0,"cells_raw":0,"read":"whole","date_system":"1900"}

{"sheet":"CONTROL","index":0,"n_rows":13,"n_cols":14,"rows_kept":13,"cut":false,"hidden":false,"merged":[[10,1,12,4]]}
[null,null,null,null,null,null,null,null,null,null,null,null,"English",1]
[null,null,null,null,null,null,null,null,null,null,null,null,"French"]
[null,{"$f":"IF(lang=1,M4,M5)","v":"PRINCIPAL'S YEARLY REPORT"}]
[null,{"$f":"IF(lang=1,M7,M8)","v":"Select your division name from the drop down list"},null,null,null,null,null,null,null,null,null,null,"PRINCIPAL'S YEARLY REPORT"]
[null,null,null,null,null,null,null,null,null,null,null,null,"RAPPORT ANNUEL DES DIRECTEURS D’ÉCOLES"]
[]
[null,null,null,null,null,null,null,null,null,null,null,null,"Select your division name from the drop down list"]
[null,null,null,null,null,null,null,null,null,null,null,null,"Pour personnaliser ces formulaires pour votre division ou district scolaire, cliquez sur la flèche descendante et sélectionnez le nom de votre division ou district scolaire dans la liste déroulante (la liste est en ordre alphabétique) :"]
[]
[]
[null,{"$f":"IF(lang=1,M12,M13)","v":"Select the applicable reporting date:"}]
[null,null,null,null,null,null,null,null,null,null,null,null,"Select the applicable reporting date:"]
[null,null,null,null,null,null,null,null,null,null,null,null,"Pour mettre à jour ce formulaire dans l’avenir, sélectionnez une nouvelle date de rapport dans la liste déroulante ci-dessous :"]

{"sheet":"Instructions-English","index":1,"n_rows":39,"n_cols":2,"rows_kept":39,"cut":false,"hidden":false,"merged":[[0,0,0,2],[9,0,9,1],[20,1,24,2],[19,1,19,2],[3,0,6,2],[7,0,7,2],[16,1,16,2]]}
[]
["FB 114 - PRINCIPAL'S YEARLY REPORT"]
[]
["Further details to assist school divisions in meeting the requirements for the reporting of categorical grant data and information is available in the Public Schools Enrolment and Categorical Grants Reporting booklet available on the Internet at:    "]
[]
[]
[]
["www.edu.gov.mb.ca/k12/finance/index.html"]
[]
["SCHOOL CLOSURES"]
["School boards are required to operate each school in the division for not less than the number of days in the school year as prescribed by "]
["the Minister under the School Days, Hours and Vacations Regulation, Manitoba Regulation (M.R.) 101/95.  M.R. 101/95 also requires prompt "]
["communication of any incidental closing of a school from any cause to the Minister. Incidental closures may result in a loss of operating grant "]
["under the Funding of Schools Program where the requirements of M.R. 101/95 have not been met."]
[]
[]
[null,"FB 114 - Principal’s Yearly Report "]
[null,"Reporting Date: June 30"]
[]
[null,"The FB 114 form is for divisional use only and should not be returned to the Schools’ Finance Branch.  "]
[null,"The FB 114 form is used by school principals for reporting data for each school in order to complete the FB 114S - Summary of School Closures file.  Data collected includes number of days open, number of scheduled closures and dates of incidental closures.  The dates of incidental closures should be supported by corresponding FB 114N forms or other letters of authority.  The FB 114 form is for school division internal use only and should NOT be returned to Education Funding Branch. "]
[]
[]
[]
[]
[]
[null,"Enter the following information on the form:"]
[null,"Section A - School Days:"]
[null,"● School Name"]
[null,"● Principal's Name"]
[null,"● Total number of days school was open"]
[null,"Section B - Scheduled Closures:"]
[null,"● Number of days (full and half) for each reason listed"]
[null,"Section C - Incidental Closures:"]
[null,"● Reasons for closing"]
[null,"● For each reason, date of closure and full or half day"]
[null,"● Number of days (full and half) for each reason listed"]
[]
[null,"Provide appropriate dates and signatures."]

{"sheet":"Instructions-Francais","index":2,"n_rows":72,"n_cols":4,"rows_kept":72,"cut":false,"hidden":false,"merged":[[4,1,4,3],[5,2,6,3],[8,2,9,3],[11,2,13,3],[14,2,14,3],[23,1,23,2],[54,2,54,3],[30,2,30,3],[33,2,33,3],[71,1,71,3],[70,1,70,3]]}
[]
[null,"DIRECTIVES POUR REMPLIR ET REMETTRE LES FORMULAIRES"]
[null,"FB 114 – RAPPORT ANNUEL DES DIRECTEURS D’ÉCOLES"]
[]
[null,"DATES DE COMMUNICATION DES RAPPORTS ET RENSEIGNEMENTS"]
[null,null,"Lorsque la date de communication du rapport tombe une fin de semaine ou un jour férié, la date de communication est le dernier jour d’école qui précède la fin de semaine ou le jour férié."]
[]
[]
[null,null,"Lorsque la date d’échéance tombe une fin de semaine ou un jour férié, la date d’échéance est le dernier jour ouvrable qui précède la fin de semaine ou le jour férié."]
[]
[]
[null,null,"Les dates de communication réelles pour l’année scolaire en cours (Annexe E) ainsi que d’autres renseignements servant à aider les divisions scolaires à répondre aux exigences relatives à la communication des données sur les subventions par catégorie et des pièces justificatives sont compris dans le document Communication des données sur les inscriptions et les subventions par catégorie des écoles publiques qui se trouve à l’adresse Web suivante :"]
[]
[]
[null,null,"www.edu.gov.mb.ca/m12/stat-fin/index.html"]
[]
[null,"","DESCRIPTION ET DIRECTIVES"]
[null,null,"Cliquez sur l’onglet « MISE À JOUR » dans le présent classeur pour mettre à jour, à l'année scolaire réelle, les dates de communication "]
[null,null,"des formulaires. Pour avoir accès au formulaire, cliquez sur l’onglet portant le numéro de formulaire correspondant. Si vous remplissez "]
[null,null,"le formulaire électroniquement, n’oubliez pas d’enregistrer le fichier duquel provient la copie que vous avez imprimée."]
[]
[]
[]
[null,"FERMETURES D’ÉCOLE"]
[null,"Les commissions scolaires sont tenues d’ouvrir chacune des écoles de la division pour le nombre minimal de jours dans l’année scolaire "]
[null,"prescrit par le ministre en vertu du Règlement sur les jours, les heures et les vacances scolaires (R.M 101/95). Le Règlement exige "]
[null,"également que toute fermeture d’école imprévue, pour toute raison, soit immédiatement communiquée au ministre. Les fermetures imprévues "]
[null,"pourraient entraîner la perte de la subvention de fonctionnement aux termes du Programme de financement des écoles là où les exigences "]
[null,"du R.M 101/95 n’ont pas été respectées."]
[]
[null,"","FB 114 – Rapport annuel des directeurs d’école"]
[null,"","Date de communication : le 30 juin"]
[null,""]
[null,"","Les formulaires FB 114 sont réservés à l’usage de la division et ne doivent pas être renvoyés \nà la Direction des finances des écoles."]
[null,"","Le formulaire FB 114 est utilisé par les directeurs d’école pour communiquer les données servant à remplir le fichier FB 114S - "]
[null,"","Sommaire des fermetures d’écoles. Les données recueillies comprennent le nombre de jours d’ouverture de l’école, le nombre de "]
[null,"","jours de fermeture prévue et le nombre de jours de fermeture imprévue. Les dates des fermetures imprévues doivent être "]
[null,"","accompagnées des formulaires FB 114N correspondants ou toute autre lettre d’autorisation. Le formulaire FB 114 est réservé à l’usage "]
[null,"","de la division et ne doit PAS être transmise à la Direction des finances des écoles."]
[null,""]
[null,null,"Fournissez les renseignements suivants sur le formulaire :"]
[null,null,"Section A – Jours d’école :"]
[null,null,"• nom de l’école;"]
[null,null,"• nom de la directrice ou du directeur;"]
[null,null,"• nombre total de jours d’ouverture."]
[null,null,"Section B – Jours de fermeture prévue :"]
[null,null,"• nombre de jours (jour entier et demi-journée) de fermeture pour chaque raison énumérée."]
[null,null,"Section C – Jours de fermeture imprévue :"]
[null,null,"• raisons de la fermeture;"]
[null,null,"• pour chaque raison énumérée, indiquez la date de la fermeture et la durée (jour entier ou demi-journée);"]
[null,null,"• nombre de jours (jour entier et demi-journée) de fermeture pour chaque raison énumérée."]
[]
[null,null,"Fournissez les dates et les signatures pertinentes."]
[null,""]
[null,"","DIRECTIVES POUR TRANSMETTRE LES FORMULAIRES"]
[]
[null,"","Les formulaires ne peuvent être ni signés ni transmis avant la date de communication indiquée."]
[null,"",null,""]
[null,"","Remplissez le formulaire avec les renseignements requis."]
[null,"","Enregistrez le formulaire rempli sur votre réseau local et imprimez des copies papiers."]
[null,"","Obtenez les signatures pertinentes."]
[null,"",null,""]
[null,"","Une fois que vous aurez rempli les formulaires appropriés et obtenu les signatures requises, transmettez les formulaires et les fichiers "]
[null,null,"électroniques (le cas échéant) directement à la Direction des finances des écoles."]
[]
[null,"",null,"FB 114S –  Sommaire des fermetures d’écoles (date d'échéance : le 7 juillet)"]
[null,""]
[null,""]
[null,"PERSONNES-RESSOURCES :"]
[]
[null,"Si vous avez des questions concernant les formulaires ou le fichier informatique, veuillez communiquer avec :"]
[null,"la Direction des finances des écoles – (  204 945-6910, +"]

{"sheet":"FB114 Principal Yearly Report","index":3,"n_rows":81,"n_cols":27,"rows_kept":81,"cut":false,"hidden":false,"merged":[[29,2,29,3],[31,5,31,6],[31,2,31,3],[11,3,11,9],[24,4,24,7],[25,5,26,6],[3,2,4,10],[1,2,1,10],[28,5,28,6],[21,2,21,7],[27,5,27,6],[25,4,26,4],[28,2,28,3],[20,2,20,7],[45,2,45,3],[48,2,48,3],[34,2,34,3],[32,2,32,3],[29,5,29,6],[30,5,30,6],[35,2,35,3],[35,5,35,6],[36,2,36,3],[36,5,36,6],[30,2,30,3],[32,5,32,6],[33,5,33,6],[34,5,34,6],[33,2,33,3]]}
[null,null,null,null,null,null,null,null,null,null,null,null,null,null,{"$f":"+Tables!J728","v":1}]
[null,null,{"$f":"IF(lang=1,U2,U3)","v":"Principal's  Yearly  Report  for the  2024 / 2025 School Year"},null,null,null,null,null,null,null,null,null,null,null,{"$f":"+Tables!J729","v":2},{"$f":"+Tables!K729","v":""},null,null,null,null,{"$f":"\"Principal's  Yearly  Report  for the  \"&VLOOKUP(YEARNUM,YEARTABLE,2)&\" School Year\"","v":"Principal's  Yearly  Report  for the  2024 / 2025 School Year"}]
[null,null,null,null,null,null,null,null,null,null,null,null,null,null,{"$f":"+Tables!J730","v":3},{"$f":"+Tables!K730","v":""},null,null,null,null,{"$f":"\"Rapport annuel des directeurs d'école année scolaire \"&VLOOKUP(YEARNUM,YEARTABLE,2)","v":"Rapport annuel des directeurs d'école année scolaire 2024 / 2025"}]
[null,null,{"$f":"IF(lang=1,U5,U6)","v":"The FB 114 (Principal's Yearly Report) is for school division internal use only unless requested by the department."},null,null,null,null,null,null,null,null,null,null,null,{"$f":"+Tables!J731","v":4},{"$f":"+Tables!K731","v":""}]
[null,null,null,null,null,null,null,null,null,null,null,null,null,null,{"$f":"+Tables!J732","v":5},{"$f":"+Tables!K732","v":""},null,null,null,null,"The FB 114 (Principal's Yearly Report) is for school division internal use only unless requested by the department."]
[null,null,null,null,null,null,null,null,null,null,null,null,null,null,{"$f":"+Tables!J733","v":6},{"$f":"+Tables!K733","v":""}]
[null,null,{"$f":"IF(lang=1,U8,U9)","v":"To Be Completed By Every Principal In The School Division On The Last Day Of The School Year"},null,null,null,null,null,null,null,null,null,null,null,{"$f":"+Tables!J734","v":7},{"$f":"+Tables!K734","v":""}]
[null,null,null,null,null,null,null,null,null,null,null,null,null,null,{"$f":"+Tables!J735","v":8},{"$f":"+Tables!K735","v":""},null,null,null,null,"To Be Completed By Every Principal In The School Division On The Last Day Of The School Year"]
[null,null,{"$f":"IF(lang=1,U10,V10)","v":" School Division:"},null,{"$f":"IF(DIVNUM=1,\"\",\" \"&DIVNAME)","v":""},null,null,null,null,null,null,null,null,null,{"$f":"+Tables!J736","v":9},{"$f":"+Tables!K736","v":""},null,null,null,null,"Tous les directeurs de la division scolaire doivent remplir ce rapport le dernier jour de l'année scolaire"]
[null,null,{"$f":"IF(lang=1,U11,V11)","v":" School Name:"},null,null,null,null,null,null,null,null,null,null,null,{"$f":"+Tables!J737","v":10},{"$f":"+Tables!K737","v":""},null,null,null,null," School Division:","Division scolaire:"]
[null,null,{"$f":"IF(lang=1,U12,V12)","v":" Principal's Name:"},null,null,null,null,null,null,null,null,null,null,null,{"$f":"+Tables!J738","v":11},{"$f":"+Tables!K738","v":""},null,null,null,null," School Name:","Nom de l'école:"]
[null,null,null,null,null,null,null,null,null,null,null,null,null,null,{"$f":"+Tables!J739","v":12},{"$f":"+Tables!K739","v":""},null,null,null,null," Principal's Name:","Nom du directrice ou directeur:"]
[null,null,{"$f":"IF(lang=1,U13,V13)","v":"Section A: School Days"},null,null,null,null,null,null,null,null,null,null,null,{"$f":"+Tables!J740","v":13},{"$f":"+Tables!K740","v":""},null,null,null,null,"Section A: School Days","Section A : Jours d'école"]
[null,null,{"$f":"IF(lang=1,U14,V14)","v":"Number of days the School was open"},null,null,null,null,null,null,null,null,null,null,null,{"$f":"+Tables!J741","v":14},{"$f":"+Tables!K741","v":""},null,null,null,null,"Number of days the School was open","Nombre total de jours d'ouverture"]
[null,null,{"$f":"IF(lang=1,U15,V15)","v":"(Do NOT include DAYS CLOSED listed in Sections B and C below.)"},null,null,null,null,null,null,null,null,"(A)",null,null,{"$f":"+Tables!J742","v":15},{"$f":"+Tables!K742","v":""},null,null,null,null,"(Do NOT include DAYS CLOSED listed in Sections B and C below.)","(Ne PAS inclure les JOURS DE FERMETURE indiqués aux sections B et C ci-dessous.)"]
[null,null,null,null,null,null,null,null,null,null,null,null,null,null,{"$f":"+Tables!J743","v":16},{"$f":"+Tables!K743","v":""}]
[null,null,{"$f":"IF(lang=1,U17,V17)","v":"Section B: Scheduled Closures"},null,null,null,null,null,null,null,null,null,null,null,{"$f":"+Tables!J744","v":17},{"$f":"+Tables!K744","v":""},null,null,null,null,"Section B: Scheduled Closures","Section B : Jours de fermeture prévue"]
[null,null,null,null,null,null,null,null,{"$f":"IF(lang=1,X18,Y18)","v":"Days Closed"},null,null,null,null,null,{"$f":"+Tables!J745","v":18},{"$f":"+Tables!K745","v":""},null,null,null,null,"Reason for Closing"," Raison de la fermeture",null,"Days Closed","Jours fermés"]
[null,null,{"$f":"IF(lang=1,U18,V18)","v":"Reason for Closing"},null,null,null,null,null,{"$f":"IF(lang=1,X19,Y19)","v":"( Full-Day = 1.0,"},null,null,null,null,null,{"$f":"+Tables!J746","v":19},{"$f":"+Tables!K746","v":""},null,null,null,null,null,null,null,"( Full-Day = 1.0,","(Jour entier = 1,0"]
[null,null,null,null,null,null,null,null,{"$f":"IF(lang=1,X20,Y20)","v":"A.M. or P.M. = .5 )"},null,null,null,null,null,{"$f":"+Tables!J747","v":20},{"$f":"+Tables!K747","v":""},null,null,null,null,null,null,null,"A.M. or P.M. = .5 )","a.m. ou p.m. = 0.5 )"]
[null,null,{"$f":"IF(lang=1,U21,V21)","v":" Teacher  In - Service (Professional Development must be a min of 5 days)"},null,null,null,null,null,null,null,null,null,null,null,{"$f":"+Tables!J748","v":21},{"$f":"+Tables!K748","v":""},null,null,null,null," Teacher  In - Service (Professional Development must be a min of 5 days)","Journée pédagogique (doit être un minimum de 5 jours)"]
[null,null,{"$f":"IF(lang=1,U22,V22)","v":" Administration Days"},null,null,null,null,null,null,null,{"$f":"SUM(I21:I23)","v":0},"(B)",null,null,{"$f":"+Tables!J749","v":22},{"$f":"+Tables!K749","v":""},null,null,null,null," Administration Days","Administration"]
[null,null,null,null,null,null,null,null,null,null,null,null,null,null,{"$f":"+Tables!J750","v":23},{"$f":"+Tables!K750","v":""}]
[null,null,{"$f":"IF(lang=1,U24,V24)","v":"Section C: Incidental Closures"},null,null,null,null,null,null,null,null,null,null,null,{"$f":"+Tables!J751","v":24},{"$f":"+Tables!K751","v":""},null,null,null,null,"Section C: Incidental Closures","Section C : Jours de fermeture imprévue (1)"]
[null,null,{"$f":"IF(lang=1,U25,V25)","v":"Reason for Closing"},null,{"$f":"IF(lang=1,X25,Y25)","v":"Date of Closure"},null,null,null,{"$f":"IF(lang=1,Z25,AA25)","v":"Days Closed"},null,null,null,null,null,{"$f":"+Tables!J752","v":25},{"$f":"+Tables!K752","v":""},null,null,null,null,"Reason for Closing","Raison de la fermeture",null,"Date of Closure","Date de la fermeture","Days Closed","Jours fermés"]
[null,null,{"$f":"IF(lang=1,U26,V26)","v":"Incidental closures must be reported by "},null,{"$f":"IF(lang=1,X26,Y26)","v":"Month"},{"$f":"IF(lang=1,X27,Y27)","v":"Day"},null,{"$f":"IF(lang=1,U28,V28)","v":"Full-Day,"},{"$f":"IF(lang=1,Z26,AA26)","v":"( Full-Day = 1.0,"},null,null,null,null,null,{"$f":"+Tables!J753","v":26},{"$f":"+Tables!K753","v":""},null,null,null,null,"Incidental closures must be reported by ",null,null,"Month","Jour","( Full-Day = 1.0,","(Jour entier = 1,0"]
[null,null,{"$f":"IF(lang=1,U27,V27)","v":"completing online form"},null,null,null,null,{"$f":"IF(lang=1,U29,V29)","v":"A.M. or P.M."},{"$f":"IF(lang=1,Z27,AA27)","v":"A.M. or P.M. = .5 )"},null,null,null,null,null,{"$f":"+Tables!J754","v":27},{"$f":"+Tables!K754","v":""},null,null,null,null,"completing online form",null,null,"Day","Mois","A.M. or P.M. = .5 )","a.m. ou p.m. = 0.5 )"]
[null,null,null,null,null,null,null,{"$f":"VLOOKUP(DAYCODE1,AMPMTABLE,4)","v":0},{"$f":"VLOOKUP(DAYCODE1,AMPMTABLE,3)","v":0},null,null,null,null,null,{"$f":"+Tables!J755","v":28},{"$f":"+Tables!K755","v":""},null,null,null,null,"Full-Day,","Jour entier"]
[null,null,null,null,null,null,null,{"$f":"VLOOKUP(DAYCODE2,AMPMTABLE,4)","v":0},{"$f":"VLOOKUP(DAYCODE2,AMPMTABLE,3)","v":0},null,null,null,null,null,{"$f":"+Tables!J756","v":29},{"$f":"+Tables!K756","v":""},null,null,null,null,"A.M. or P.M.","a.m. ou p.m."]
[null,null,null,null,null,null,null,{"$f":"VLOOKUP(DAYCODE3,AMPMTABLE,4)","v":0},{"$f":"VLOOKUP(DAYCODE3,AMPMTABLE,3)","v":0},null,null,null,null,null,{"$f":"+Tables!J757","v":30},{"$f":"+Tables!K757","v":""}]
[null,null,null,null,null,null,null,{"$f":"VLOOKUP(DAYCODE4,AMPMTABLE,4)","v":0},{"$f":"VLOOKUP(DAYCODE4,AMPMTABLE,3)","v":0},null,null,null,null,null,{"$f":"+Tables!J758","v":31},{"$f":"+Tables!K758","v":""}]
[null,null,null,null,null,null,null,{"$f":"VLOOKUP(DAYCODE5,AMPMTABLE,4)","v":0},{"$f":"VLOOKUP(DAYCODE5,AMPMTABLE,3)","v":0},null,null,null,null,null,{"$f":"+Tables!J759","v":32},{"$f":"+Tables!K759","v":""}]
[null,null,null,null,null,null,null,{"$f":"VLOOKUP(DAYCODE6,AMPMTABLE,4)","v":0},{"$f":"VLOOKUP(DAYCODE6,AMPMTABLE,3)","v":0},null,null,null,null,null,{"$f":"+Tables!J760","v":33},{"$f":"+Tables!K760","v":""}]
[null,null,null,null,null,null,null,{"$f":"VLOOKUP(DAYCODE7,AMPMTABLE,4)","v":0},{"$f":"VLOOKUP(DAYCODE7,AMPMTABLE,3)","v":0},null,null,null,null,null,{"$f":"+Tables!J761","v":34},{"$f":"+Tables!K761","v":""}]
[null,null,null,null,null,null,null,{"$f":"VLOOKUP(DAYCODE8,AMPMTABLE,4)","v":0},{"$f":"VLOOKUP(DAYCODE8,AMPMTABLE,3)","v":0},null,null,null,null,null,{"$f":"+Tables!J762","v":35},{"$f":"+Tables!K762","v":""}]
[null,null,null,null,null,null,null,{"$f":"VLOOKUP(DAYCODE9,AMPMTABLE,4)","v":0},{"$f":"VLOOKUP(DAYCODE9,AMPMTABLE,3)","v":0},null,null,null,null,null,{"$f":"+Tables!J763","v":36},{"$f":"+Tables!K763","v":""}]
[null,null,null,null,null,null,null,{"$f":"VLOOKUP(DAYCODE10,AMPMTABLE,4)","v":0},{"$f":"VLOOKUP(DAYCODE10,AMPMTABLE,3)","v":0},null,{"$f":"SUM(I28:I37)","v":0},"(C)",null,null,{"$f":"+Tables!J765","v":38},{"$f":"+Tables!K765","v":""}]
[null,null,null,null,null,null,null,null,null,null,null,null,null,null,{"$f":"+Tables!J766","v":39},{"$f":"+Tables!K766","v":""}]
[null,null,{"$f":"IF(lang=1,U39,V39)","v":"Total Number of School Days  (A + B + C)         (Maximum of 193 Days)"},null,null,null,null,null,null,null,{"$f":"K15+K22+K37","v":0},null,null,null,{"$f":"+Tables!J767","v":40},{"$f":"+Tables!K767","v":""},null,null,null,null,{"$f":"\"Total Number of School Days \"&\" (A + B + C)\"&\"         (Maximum of \"&FIXED(VLOOKUP(YEARNUM,YEARTABLE,4),0)&\" Days)\"","v":"Total Number of School Days  (A + B + C)         (Maximum of 193 Days)"},{"$f":"\" Nombre total de jours dans l'année scolaire (A + B + C)\"&\"    (Maximum de \"&FIXED(VLOOKUP(YEARNUM,YEARTABLE,4),0)&\" jours)\"","v":" Nombre total de jours dans l'année scolaire (A + B + C)    (Maximum de 193 jours)"}]
[null,null,null,null,null,null,null,null,null,null,null,null,null,null,{"$f":"+Tables!J768","v":41},{"$f":"+Tables!K768","v":""}]
[null,null,{"$f":"IF(lang=1,U41,V41)","v":" I hereby certify that, to the best of my knowledge and belief, the information furnished in this report is true and correct "},null,null,null,null,null,null,null,null,null,null,null,{"$f":"+Tables!J769","v":42},{"$f":"+Tables!K769","v":""},null,null,null,null," I hereby certify that, to the best of my knowledge and belief, the information furnished in this report is true and correct ","Nous attestons que les renseignements fournis dans le présent rapport sont, à notre connaissance, "]
[null," ",{"$f":"IF(lang=1,U42,V42)","v":"and in accordance with the laws and regulations of the Province of Manitoba."},null,null,null,null,null,null,null,null,null,null,null,{"$f":"+Tables!J770","v":43},{"$f":"+Tables!K770","v":""},null,null,null,null,"and in accordance with the laws and regulations of the Province of Manitoba.","véridique et exacts, conformément aux lois et règlements de la Province du Manitoba."]
[null,null,null,null,null,null,null,null,null,null,null,null,null,null,{"$f":"+Tables!J771","v":44},{"$f":"+Tables!K771","v":""}]
[null,null,null,null,null,null,null,null,null,null,null,null,null,null,{"$f":"+Tables!J772","v":45},{"$f":"+Tables!K772","v":""}]
[null,null,null,null,null,null,null,null,null,null,null,null,null,null,{"$f":"+Tables!J773","v":46},{"$f":"+Tables!K773","v":""}]
[null,null,{"$f":"IF(lang=1,U46,V46)","v":"Principal"},null,null,null,null,"DATE",null,null,null,null,null,null,{"$f":"+Tables!J774","v":47},{"$f":"+Tables!K774","v":""},null,null,null,null,"Principal","Directrice ou Directeur de l’école"]
[null,null,null,null,null,null,null,null,null,null,null,null,null,null,{"$f":"+Tables!J775","v":48},{"$f":"+Tables!K775","v":""}]
[]
[]
[null,null,null,null,null,null,null,null,null,null,null,null,null,null,{"$f":"+Tables!J778","v":51},{"$f":"+Tables!K778","v":""}]
[null,null,null,null,null,null,null,null,null,null,null,null,null,null,{"$f":"+Tables!J779","v":52},{"$f":"+Tables!K779","v":""}]
[null,null,null,null,null,null,null,null,null,null,null,null,null,null,{"$f":"+Tables!J780","v":53},{"$f":"+Tables!K780","v":""}]
[null,null,null,null,null,null,null,null,null,null,null,null,null,null,{"$f":"+Tables!J781","v":54},{"$f":"+Tables!K781","v":""}]
[null,null,null,null,null,null,null,null,null,null,null,null,null,null,{"$f":"+Tables!J782","v":55},{"$f":"+Tables!K782","v":""}]
[null,null,null,null,null,null,null,null,null,null,null,null,null,null,{"$f":"+Tables!J783","v":56},{"$f":"+Tables!K783","v":""}]
[null,null,null,null,null,null,null,null,null,null,null,null,null,null,{"$f":"+Tables!J784","v":57},{"$f":"+Tables!K784","v":""}]
[null,null,null,null,null,null,null,null,null,null,null,null,null,null,{"$f":"+Tables!J785","v":58},{"$f":"+Tables!K785","v":""}]
[null,null,null,null,null,null,null,null,null,null,null,null,null,null,{"$f":"+Tables!J786","v":59},{"$f":"+Tables!K786","v":""}]
[null,null,null,null,null,null,null,null,null,null,null,null,null,null,{"$f":"+Tables!J787","v":60},{"$f":"+Tables!K787","v":""}]
[null,null,null,null,null,null,null,null,null,null,null,null,null,null,{"$f":"+Tables!J788","v":61},{"$f":"+Tables!K788","v":""}]
[null,null,null,null,null,null,null,null,null,null,null,null,null,null,{"$f":"+Tables!J789","v":62},{"$f":"+Tables!K789","v":""}]
[null,null,null,null,null,null,null,null,null,null,null,null,null,null,{"$f":"+Tables!J790","v":63},{"$f":"+Tables!K790","v":""}]
[null,null,null,null,null,null,null,null,null,null,null,null,null,null,{"$f":"+Tables!J791","v":64},{"$f":"+Tables!K791","v":""}]
[null,null,null,null,null,null,null,null,null,null,null,null,null,null,{"$f":"+Tables!J792","v":65},{"$f":"+Tables!K792","v":""}]
[null,null,null,null,null,null,null,null,null,null,null,null,null,null,{"$f":"+Tables!J793","v":66},{"$f":"+Tables!K793","v":""}]
[null,null,null,null,null,null,null,null,null,null,null,null,null,null,{"$f":"+Tables!J794","v":67},{"$f":"+Tables!K794","v":""}]
[null,null,null,null,null,null,null,null,null,null,null,null,null,null,{"$f":"+Tables!J795","v":68},{"$f":"+Tables!K795","v":""}]
[null,null,null,null,null,null,null,null,null,null,null,null,null,null,{"$f":"+Tables!J796","v":69},{"$f":"+Tables!K796","v":""}]
[null,null,null,null,null,null,null,null,null,null,null,null,null,null,{"$f":"+Tables!J797","v":70},{"$f":"+Tables!K797","v":""}]
[null,null,null,null,null,null,null,null,null,null,null,null,null,null,{"$f":"+Tables!J798","v":71},{"$f":"+Tables!K798","v":""}]
[null,null,null,null,null,null,null,null,null,null,null,null,null,null,{"$f":"+Tables!J799","v":72},{"$f":"+Tables!K799","v":""}]
[null,null,null,null,null,null,null,null,null,null,null,null,null,null,{"$f":"+Tables!J800","v":73},{"$f":"+Tables!K800","v":""}]
[null,null,null,null,null,null,null,null,null,null,null,null,null,null,{"$f":"+Tables!J801","v":74},{"$f":"+Tables!K801","v":""}]
[null,null,null,null,null,null,null,null,null,null,null,null,null,null,{"$f":"+Tables!J802","v":75},{"$f":"+Tables!K802","v":""}]
[null,null,null,null,null,null,null,null,null,null,null,null,null,null,{"$f":"+Tables!J803","v":76},{"$f":"+Tables!K803","v":""}]
[null,null,null,null,null,null,null,null,null,null,null,null,null,null,{"$f":"+Tables!J804","v":77},{"$f":"+Tables!K804","v":""}]
[null,null,null,null,null,null,null,null,null,null,null,null,null,null,{"$f":"+Tables!J805","v":78},{"$f":"+Tables!K805","v":""}]
[null,null,null,null,null,null,null,null,null,null,null,null,null,null,{"$f":"+Tables!J806","v":79},{"$f":"+Tables!K806","v":""}]
[null,null,null,null,null,null,null,null,null,null,null,null,null,null,{"$f":"+Tables!J807","v":80},{"$f":"+Tables!K807","v":""}]
[null,null,null,null,null,null,null,null,null,null,null,null,null,null,{"$f":"+Tables!J808","v":81},{"$f":"+Tables!K808","v":""}]
[null,null,null,null,null,null,null,null,null,null,null,null,null,null,{"$f":"+Tables!J809","v":82},{"$f":"+Tables!K809","v":0}]

{"sheet":"Tables","index":4,"n_rows":809,"n_cols":30,"rows_kept":809,"cut":false,"hidden":true,"merged":[[2,10,2,11]]}
[null,"Public Schools Table - updated 28 MAR 2017",null,null,null,null,null,null,null,"DIVNUM",1,null,null,null,"YEARNUM",2,{"$f":"VLOOKUP(YEARNUM,YEARTABLE,3,FALSE)","v":"(2024 / 2025)"},{"$f":"VLOOKUP(YEARNUM,YEARTABLE,4,FALSE)","v":193}]
[null,null,null,null,null,null,null,null,null,"DIVCODE",{"$f":"VLOOKUP(DIVNUM,DIVLIST,3)","v":"CODE"}]
[null,null,null,null,{"$f":"COUNTA(E6:E710)","v":705},null,null,null,null,"DIVNAME",{"$f":"VLOOKUP(DIVNUM,DIVLIST,2,FALSE)","v":"Press arrow for School Division Name  ----- >"},null,null,null,null,null,null,null,null,null,null,null,null,null,null,null,1,"2023 / 2024","(2023 / 2024)",196]
[null,null,null,null,null,null,null,null,null,{"$f":"SUM(J6:J42)","v":705},null,null,null,null,null,null,null,null,null,null,null,null,null,null,null,null,2,"2024 / 2025","(2024 / 2025)",193]
[null,"EIS","SFB","Code","School Name",null,null,null,null,"How many schools",1,"Press arrow for School Division Name  ----- >","CODE",null,null,null,null,null,null,null,null,null,null,null,null,null,3,"2025 / 2026","(2025 / 2026)",196]
[1,153,"BE",2202,"Acadia Colony School",{"$f":"IF(D6=H6,\"\",\"x\")","v":""},"BE",2202,"ACADIA COLONY SCHOOL",{"$f":"COUNTIF($C$6:$C$738,M6)","v":15},2,"Beautiful Plains","BE",null,null,null,null,null,null,null,null,null,null,null,null,null,4,"2026 / 2027","(2026 / 2027)",191]
[{"$f":"A6+1","v":2},153,"BE",1117,"Brookdale School",{"$f":"IF(D7=H7,\"\",\"x\")","v":""},"BE",1117,"BROOKDALE SCHOOL",16,3,"Border Land","BO",null,null,null,null,null,null,null,null,null,null,null,null,null,5,"2027 / 2028","(2027 / 2028)",193]
[{"$f":"A7+1","v":3},153,"BE",1434,"Carberry Collegiate","","BE",1434,"CARBERRY COLLEGIATE",24,4,"Brandon","BR",null,"SELECT",2,null,1,"SUPERINTENDENT"]
[4,153,"BE",2098,"Fairway Colony School","","BE",2098,"FAIRWAY COLONY SCHOOL",24,5,"Franco-Manitobaine","DI",null,null,null,null,2,"SECRETARY-TREASURER"]
[5,153,"BE",1292,"Hazel M. Kellington School","","BE",1292,"HAZEL M. KELLINGTON SCHOOL",8,6,"Evergreen","EV"]
[6,153,"BE",1184,"J. M. Young School","","BE",1184,"J. M. YOUNG SCHOOL",4,7,"Flin Flon","FL",null,"SCHOOLCODE",1,null,1,{"$f":"IF(lang=1,X11,Y11)","v":"Blank"},null,null,null,null,"Blank","Vide"]
[7,153,"BE",1573,"Neepawa Area Collegiate","","BE",1573,"NEEPAWA AREA COLLEGIATE",10,8,"Fort La Bosse","FO",null,"SCHOOLNAME",{"$f":"IF(SCHOOLCODE=1,\"\",VLOOKUP(SCHOOLCODE,SCHOOLTABLE,2))","v":""},null,2,{"$f":"IF(lang=1,X12,Y12)","v":"Full"},1,"Full Day",null,null,"Full","Entier"]
[8,153,"BE",2320,"Neepawa Middle School","","BE",2320,"NEEPAWA MIDDLE SCHOOL",40,9,"Frontier","FR",null,"SCHOOLCODE1",5,null,3,{"$f":"IF(lang=1,X13,Y13)","v":"A.M."},0.5,"A.M.",null,null,"A.M.","av.-midi"]
[9,153,"BE",1645,"R. J. Waugh Elementary","","BE",1645,"R. J. WAUGH ELEMENTARY",14,10,"Garden Valley","GA",null,"SCHOOLNAME1",{"$f":"IF(SCHOOLCODE1=1,\"\",VLOOKUP(SCHOOLCODE1,SCHOOLTABLE,2))","v":""},null,4,{"$f":"IF(lang=1,X14,Y14)","v":"P.M."},0.5,"P.M.",null,null,"P.M.","apr.-midi"]
[10,153,"BE",1574,"Riverbend Colony School","","BE",1574,"RIVERBEND COLONY SCHOOL",19,11,"Hanover","HA",null,"SCHOOLCODE2",1]
[11,153,"BE",1734,"Riverside Colony School","","BE",1734,"RIVERSIDE COLONY SCHOOL",22,12,"Interlake","IN",null,"SCHOOLNAME2",{"$f":"IF(SCHOOLCODE2=1,\"\",VLOOKUP(SCHOOLCODE2,SCHOOLTABLE,2))","v":""},null,"DAYCODE1",1]
[12,153,"BE",2236,"Rolling Acres School","","BE",2236,"ROLLING ACRES SCHOOL",5,13,"Kelsey","KE",null,"SCHOOLCODE3",1,null,"DAYCODE2",1]
[13,153,"BE",1221,"Spruce Woods School","","BE",1221,"SPRUCE WOOD SCHOOL",10,14,"Lakeshore","LA",null,"SCHOOLNAME3",{"$f":"IF(SCHOOLCODE3=1,\"\",VLOOKUP(SCHOOLCODE3,SCHOOLTABLE,2))","v":""},null,"DAYCODE3",1]
[14,153,"BE",2127,"Twilight Colony School","","BE",2127,"TWILIGHT COLONY SCHOOL",15,15,"Lord Selkirk","LO",null,"SCHOOLCODE4",1,null,"DAYCODE4",1]
[15,153,"BE",1311,"Willerton School","","BE",1311,"WILLERTON SCHOOL",40,16,"Louis Riel","LR",null,"SCHOOLNAME4",{"$f":"IF(SCHOOLCODE4=1,\"\",VLOOKUP(SCHOOLCODE4,SCHOOLTABLE,2))","v":""},null,"DAYCODE5",1]
[16,185,"BO",2086,"Blue Clay Colony School","","BO",2086,"BLUE CLAY COLONY SCHOOL",16,17,"Mountain View","MO",null,"SCHOOLCODE5",1,null,"DAYCODE6",1]
[17,185,"BO",1730,"École Elmwood School","","BO",1730,"ÉCOLE ELMWOOD SCHOOL",7,18,"Mystery Lake School District","MY",null,"SCHOOLNAME5",{"$f":"IF(SCHOOLCODE5=1,\"\",VLOOKUP(SCHOOLCODE5,SCHOOLTABLE,2))","v":""},null,"DAYCODE7",1]
[18,185,"BO",1721,"École Parkside School","","BO",1721,"ÉCOLE PARKSIDE SCHOOL",15,19,"Park West","PA",null,"SCHOOLCODE6",1,null,"DAYCODE8",1]
[19,185,"BO",1533,"École West Park School","","BO",1533,"ÉCOLE WEST PARK SCHOOL",35,20,"Pembina Trails","PE",null,"SCHOOLNAME6",{"$f":"IF(SCHOOLCODE6=1,\"\",VLOOKUP(SCHOOLCODE6,SCHOOLTABLE,2))","v":""},null,"DAYCODE9",1]
[20,185,"BO",1177,"Emerson Elementary","","BO",1177,"EMERSON ELEMENTARY",14,21,"Pine Creek","PI",null,"SCHOOLCODE7",1,null,"DAYCODE10",1]
[21,185,"BO",1380,"Glenway Colony School","","BO",1380,"GLENWAY COLONY SCHOOL",18,22,"Portage La Prairie","PO",null,"SCHOOLNAME7",{"$f":"IF(SCHOOLCODE7=1,\"\",VLOOKUP(SCHOOLCODE7,SCHOOLTABLE,2))","v":""}]
[22,185,"BO",2290,"Green Ridge School","","BO",2290,"GREEN RIDGE SCHOOL",26,23,"Prairie Rose","PR",null,"SCHOOLCODE8",1]
[23,185,"BO",1786,"Gretna Elementary","","BO",1786,"GRETNA ELEMENTARY",29,24,"Prairie Spirit","PS",null,"SCHOOLNAME8",{"$f":"IF(SCHOOLCODE8=1,\"\",VLOOKUP(SCHOOLCODE8,SCHOOLTABLE,2))","v":""}]
[24,185,"BO",2286,"Horizon Colony School","","BO",2286,"HORIZON COLONY SCHOOL",13,25,"Red River Valley","RE"]
[25,185,"BO",2122,"Pineland Colony School","","BO",2122,"PINELAND COLONY SCHOOL",42,26,"River East Transcona","RI",null,null,null,"If Range(\"DIVCODE\") = \"CODE\" Then"]
[26,185,"BO",2123,"Ridgeville Colony School","","BO",2123,"RIDGEVILLE COLONY SCHOOL",17,27,"Rolling River","RO",null,null,null,"        Application.Run \"Finish\""]
[27,185,"BO",1658,"Roseau Valley School","","BO",1658,"ROSEAU VALLEY SCHOOL",15,28,"Seine River","SE",null,null,null,"        Else"]
[28,185,"BO",1344,"Rosenfeld Elementary","","BO",1344,"ROSENFELD ELEMENTARY",26,29,"Seven Oaks","SO",null,null,null,"        Application.Run \"rows\""]
[29,185,"BO",1059,"Ross L. Gray School","","BO",1059,"ROSS L. GRAY SCHOOL",13,30,"Southwest Horizon","SR",null,null,null,"    End If"]
[30,185,"BO",1551,"Shevchenko School","","BO",1551,"SHEVCHENKO SCHOOL",26,31,"St. James - Assiniboia","ST"]
[31,185,"BO",1778,"W. C. Miller Collegiate","","BO",1778,"W. C. MILLER COLLEGIATE",19,32,"Sunrise","SU"]
[32,119,"BR",1901,"Alexander School","","BR",1901,"ALEXANDER SCHOOL",7,33,"Swan Valley","SW"]
[33,119,"BR",1325,"Betty Gibson School","","BR",1325,"BETTY GIBSON SCHOOL",7,34,"Turtle Mountain","TM"]
[34,119,"BR",1302,"Crocus Plains Regional Secondary","","BR",1302,"CROCUS PLAINS REGIONAL SECONDARY",7,35,"Turtle River","TR"]
[35,119,"BR",1371,"Earl Oxford School","","BR",1371,"EARL OXFORD SCHOOL",4,36,"Western","WE"]
[36,119,"BR",1449,"École Harrison","","BR",1449,"ÉCOLE HARRISON",81,37,"Winnipeg","WI"]
[37,119,"BR",1007,"George Fitton School","","BR",1007,"GEORGE FITTON SCHOOL",2,38,"Whiteshell","XW"]
[38,119,"BR",1112,"Green Acres School","","BR",1112,"GREEN ACRES SCHOOL"]
[39,119,"BR",1270,"J. R. Reid School","","BR",1270,"J. R. REID SCHOOL"]
[40,119,"BR",1660,"King George School","","BR",1660,"KING GEORGE SCHOOL"]
[41,119,"BR",1987,"Kirkcaldy Heights School","","BR",1987,"KIRKCALDY HEIGHTS SCHOOL"]
[42,119,"BR",1631,"Linden Lanes School","","BR",1631,"LINDEN LANES SCHOOL"]
[43,119,"BR",2327,"Maryland Park School","","BR",2327,"MARYLAND PARK SCHOOL"]
[44,119,"BR",1706,"Meadows School","","BR",1706,"MEADOWS SCHOOL"]
[45,119,"BR",1758,"Neelin High","","BR",1758,"NEELIN HIGH"]
[46,119,"BR",1215,"New Era School","","BR",1215,"NEW ERA SCHOOL"]
[47,119,"BR",1845,"O'Kelly School","","BR",1845,"O'KELLY SCHOOL"]
[48,119,"BR",2321,"Prairie Hope High School","","BR",2321,"PRAIRIE HOPE HIGH SCHOOL"]
[49,119,"BR",1604,"Riverheights School","","BR",1604,"RIVERHEIGHTS SCHOOL"]
[50,119,"BR",1603,"Riverview School","","BR",1603,"RIVERVIEW SCHOOL"]
[51,119,"BR",1037,"Spring Valley Colony School","","BR",1037,"SPRING VALLEY COLONY SCHOOL"]
[52,119,"BR",1593,"St. Augustine School","","BR",1593,"ST. AUGUSTINE SCHOOL"]
[53,119,"BR",1700,"Valleyview Centennial School","","BR",1700,"VALLEYVIEW CENTENNIAL SCHOOL"]
[54,119,"BR",1880,"Vincent Massey High","","BR",1880,"VINCENT MASSEY HIGH"]
[55,119,"BR",2048,"Waverly Park School","","BR",2048,"WAVERLY PARK SCHOOL"]
[56,140,"DI",2255,"Centre Scolaire Léo-Rémillard","","DI",2255,"CENTRE SCOLAIRE LÉO-RÉMILLARD"]
[57,140,"DI",1287,"Collège Louis-Riel","","DI",1287,"COLLÈGE LOUIS-RIEL"]
[58,140,"DI",1332,"École Christine-Lespérance","","DI",1332,"ÉCOLE CHRISTINE-LESPÉRANCE"]
[59,140,"DI",2078,"École Communautaire Aurèle-Lemoine","","DI",2078,"ÉCOLE COMMUNAUTAIRE AURÈLE-LEMOINE"]
[60,140,"DI",2147,"École Communautaire Gilbert-Rosset","","DI",2147,"ÉCOLE COMMUNAUTAIRE GILBERT-ROSSET"]
[61,140,"DI",2267,"École Communautaire La Voie Du Nord","","DI",2267,"ÉCOLE COMMUNAUTAIRE LA VOIE DU NORD"]
[62,140,"DI",1870,"École Communautaire Réal-Bérard","","DI",1870,"ÉCOLE COMMUNAUTAIRE RÉAL-BÉRARD"]
[63,140,"DI",2091,"École Communautaire Saint-Georges","","DI",2091,"ÉCOLE COMMUNAUTAIRE SAINT-GEORGES"]
[64,140,"DI",2104,"École Jours De Plaine","","DI",2104,"ÉCOLE JOURS DE PLAINE"]
[65,140,"DI",2231,"École La Source","","DI",2231,"ÉCOLE LA SOURCE"]
[66,140,"DI",1180,"École Lacerte","","DI",1180,"ÉCOLE LACERTE"]
[67,140,"DI",1770,"École Lagimodière",{"$f":"IF(D72=H72,\"\",\"x\")","v":""},"DI",1770,"ÉCOLE LAGIMODIÈRE"]
[68,140,"DI",1204,"École Noël-Ritchot","","DI",1204,"ÉCOLE NOËL-RITCHOT"]
[69,140,"DI",2329,"École Nord-Est","","DI",2329,"ÉCOLE NORD-EST"]
[{"$f":"A74+1","v":70},140,"DI",1648,"École Pointe-Des-Chênes","","DI",1648,"ÉCOLE POINTE-DES-CHÊNES"]
[{"$f":"A75+1","v":71},140,"DI",1887,"École Précieux-Sang","","DI",1887,"ÉCOLE PRÉCIEUX-SANG"]
[72,140,"DI",1671,"École Régionale Notre-Dame","","DI",1671,"ÉCOLE RÉGIONALE NOTRE-DAME"]
[73,140,"DI",1152,"École Régionale Saint-Jean-Baptiste","","DI",1152,"ÉCOLE RÉGIONALE SAINT-JEAN-BAPTISTE"]
[74,140,"DI",2211,"École Roméo-Dallaire","","DI",2211,"ÉCOLE ROMÉO-DALLAIRE"]
[75,140,"DI",1319,"École Sainte-Agathe","","DI",1319,"ÉCOLE SAINTE-AGATHE"]
[76,140,"DI",1399,"École Saint-Joachim","","DI",1399,"ÉCOLE SAINT-JOACHIM"]
[77,140,"DI",1350,"École Saint-Lazare","","DI",1350,"ÉCOLE SAINT-LAZARE"]
[78,140,"DI",1808,"École Taché","","DI",1808,"ÉCOLE TACHÉ"]
[79,140,"DI",1557,"École/Coll. Rég. Gabrielle-Roy","","DI",1557,"ÉCOLE/COLLÈGE RÉGIONALE GABRIELLE-ROY"]
[80,144,"EV",1587,"Arborg Collegiate","","EV",1587,"ARBORG COLLEGIATE"]
[81,144,"EV",1423,"Arborg Early/Middle Years School","","EV",1423,"ARBORG EARLY/MIDDLE YEARS SCHOOL"]
[82,144,"EV",1300,"Dr. George Johnson Middle School","","EV",1300,"DR. GEORGE JOHNSON MIDDLE SCHOOL"]
[83,144,"EV",1368,"Gimli High School","","EV",1368,"GIMLI HIGH SCHOOL"]
[84,144,"EV",1857,"Riverton Collegiate","","EV",1857,"RIVERTON COLLEGIATE"]
[85,144,"EV",2133,"Riverton Early Middle Years School","","EV",2133,"RIVERTON EARLY MIDDLE YEARS SCHOOL"]
[86,144,"EV",2212,"Sigurbjorg Stefansson Early School","","EV",2212,"SIGURBJORG STEFANSSON EARLY SCHOOL"]
[87,144,"EV",1601,"Winnipeg Beach School","","EV",1601,"WINNIPEG BEACH SCHOOL"]
[88,150,"FL",1178,"École Mcisaac School","","FL",1178,"ÉCOLE MCISAAC SCHOOL"]
[89,150,"FL",1865,"Hapnot Collegiate","","FL",1865,"HAPNOT COLLEGIATE"]
[90,150,"FL",2085,"Many Faces Education Centre","","FL",2085,"MANY FACES EDUCATION CENTRE"]
[91,150,"FL",1736,"Ruth Betts Community School","","FL",1736,"RUTH BETTS COMMUNITY SCHOOL"]
[92,103,"FO",2121,"Boundary Lane Colony School","","FO",2121,"BOUNDARY LANE COLONY SCHOOL"]
[93,103,"FO",1476,"Elkhorn School","","FO",1476,"ELKHORN SCHOOL"]
[94,103,"FO",1224,"Goulter School","","FO",1224,"GOULTER SCHOOL"]
[95,103,"FO",1672,"Kola School","","FO",1672,"KOLA SCHOOL"]
[96,103,"FO",1902,"Mary Montgomery School","","FO",1902,"MARY MONTGOMERY SCHOOL"]
[97,103,"FO",1711,"Oak Lake Community School","","FO",1711,"OAK LAKE COMMUNITY SCHOOL"]
[98,103,"FO",1313,"Plainview Colony School","","FO",1313,"PLAINVIEW COLONY SCHOOL"]
[99,103,"FO",1427,"Reston School","","FO",1427,"RESTON SCHOOL"]
[100,103,"FO",1043,"Virden Collegiate","","FO",1043,"VIRDEN COLLEGIATE"]
[101,103,"FO",1567,"Virden Junior High","","FO",1567,"VIRDEN JUNIOR HIGH"]
[102,192,"FR",1820,"Barrows Junction School","","FR",1820,"BARROWS JUNCTION SCHOOL"]
[103,192,"FR",1680,"Berens River School","","FR",1680,"BERENS RIVER SCHOOL"]
[104,192,"FR",1408,"Black River Anishinabe School","","FR",1408,"BLACK RIVER ANISHINABE SCHOOL"]
[105,192,"FR",1522,"Brochet School","","FR",1522,"BROCHET SCHOOL"]
[106,192,"FR",1934,"Chan Kagha Otina Dakota Wayawa Tipi Sch.","","FR",1934,"CHAN KAGHA OTINA DAKOTA WAYAWA TIPI SCH."]
[107,192,"FR",1031,"Cold Lake School","","FR",1031,"COLD LAKE SCHOOL"]
[108,192,"FR",1839,"Cormorant Lake School","","FR",1839,"CORMORANT LAKE SCHOOL"]
[109,192,"FR",1595,"Cranberry Portage Elementary","","FR",1595,"CRANBERRY PORTAGE ELEMENTARY"]
[110,192,"FR",1008,"D. R. Hamilton School","","FR",1008,"D. R. HAMILTON SCHOOL"]
[111,192,"FR",1968,"Dauphin River School","","FR",1968,"DAUPHIN RIVER SCHOOL"]
[112,192,"FR",1788,"Duck Bay School","","FR",1788,"DUCK BAY SCHOOL"]
[113,192,"FR",1904,"Duke Of Marlborough School","","FR",1904,"DUKE OF MARLBOROUGH SCHOOL"]
[114,192,"FR",1984,"Falcon Beach School","","FR",1984,"FALCON BEACH SCHOOL"]
[115,192,"FR",1852,"Frontier Collegiate Institute","","FR",1852,"FRONTIER COLLEGIATE"]
[116,192,"FR",1528,"Frontier Mosakahiken School","","FR",1528,"FRONTIER MOSAKAHIKEN SCHOOL"]
[117,192,"FR",1024,"Gillam School","","FR",1024,"GILLAM SCHOOL"]
[118,192,"FR",1278,"Grand Rapids School","","FR",1278,"GRAND RAPIDS SCHOOL"]
[119,192,"FR",2021,"Gypsumville School","","FR",2021,"GYPSUMVILLE SCHOOL"]
[120,192,"FR",2232,"Helen Betty Osborne Ininiw Edu. Res. Ctr","","FR",2232,"HELEN BETTY OSBORNE ININIW EDU. RES. CTR"]
[121,192,"FR",1925,"Jack River School","","FR",1925,"JACK RIVER SCHOOL"]
[122,192,"FR",1164,"Joseph H. Kerr School","","FR",1164,"JOSEPH H. KERR SCHOOL"]
[123,192,"FR",1279,"Julie Lindal School","","FR",1279,"JULIE LINDAL SCHOOL"]
[124,192,"FR",1303,"Lakefront School","","FR",1303,"LAKEFRONT SCHOOL"]
[125,192,"FR",1811,"Leaf Rapids Education Centre","","FR",1811,"LEAF RAPIDS EDUCATION CENTRE"]
[126,192,"FR",1271,"Matheson Island School","","FR",1271,"MATHESON ISLAND SCHOOL"]
[127,192,"FR",1682,"Mel Johnson School","","FR",1682,"MEL JOHNSON SCHOOL"]
[128,192,"FR",1516,"Minegoziibe Anishinabe School","","FR",1516,"MINEGOZIIBE ANISHINABE SCHOOL"]
[129,192,"FR",2118,"Ministic School","","FR",2118,"MINISTIC SCHOOL"]
[130,192,"FR",1032,"Oscar Blackburn School","","FR",1032,"OSCAR BLACKBURN SCHOOL"]
[131,192,"FR",2213,"Peonan Point School",{"$f":"IF(D136=H136,\"\",\"x\")","v":""},"FR",2213,"PEONAN POINT SCHOOL"]
[132,192,"FR",1850,"Philomene Chartrand School","","FR",1850,"PHILOMENE CHARTRAND SCHOOL"]
[133,192,"FR",1099,"Pikwitonei School","","FR",1099,"PIKWITONEI SCHOOL"]
[{"$f":"A138+1","v":134},192,"FR",1185,"Rorketon School","","FR",1185,"RORKETON SCHOOL"]
[135,192,"FR",1911,"San Antonio School","","FR",1911,"SAN ANTONIO SCHOOL"]
[136,192,"FR",2023,"Skownan School","","FR",2023,"SKOWNAN SCHOOL"]
[137,192,"FR",1688,"Stevenson Island School","","FR",1688,"STEVENSON ISLAND SCHOOL"]
[138,192,"FR",1605,"Thicket Portage School","","FR",1605,"THICKET PORTAGE SCHOOL"]
[139,192,"FR",1681,"Wanipigow School","","FR",1681,"WANIPIGOW SCHOOL"]
[140,192,"FR",1890,"Waterhen School","","FR",1890,"WATERHEN SCHOOL"]
[141,192,"FR",1073,"West Lynn Heights School","","FR",1073,"WEST LYNN HEIGHTS SCHOOL"]
[142,105,"GA",1334,"Blumenfeld School","","GA",1334,"BLUMENFELD SCHOOL"]
[143,105,"GA",1444,"Border Valley Elementary","","GA",1444,"BORDER VALLEY ELEMENTARY"]
[144,105,"GA",1107,"Edelweiss School","","GA",1107,"EDELWEISS SCHOOL"]
[145,105,"GA",2248,"Emerado Centennial","","GA",2248,"EMERADO CENTENNIAL"]
[146,105,"GA",1565,"Garden Valley Collegiate","","GA",1565,"GARDEN VALLEY COLLEGIATE"]
[147,105,"GA",1339,"Hochfeld School","","GA",1339,"HOCHFELD SCHOOL"]
[148,105,"GA",1544,"J. R. Walkof Elementary","","GA",1544,"J. R. WALKOF ELEMENTARY"]
[149,105,"GA",2285,"Northlands Parkway Collegiate","","GA",2285,"NORTHLANDS PARKWAY COLLEGIATE"]
[150,105,"GA",2053,"Parkland Elementary School","","GA",2053,"PARKLAND ELEMENTARY SCHOOL"]
[151,105,"GA",2316,"Pine Ridge Elementary School","","GA",2316,"PINE RIDGE ELEMENTARY SCHOOL"]
[152,105,"GA",1717,"Plum Coulee School","","GA",1717,"PLUM COULEE SCHOOL"]
[153,105,"GA",2275,"Prairie Dale School","","GA",2275,"PRAIRIE DALE SCHOOL"]
[154,105,"GA",1091,"Southwood Elementary","","GA",1091,"SOUTHWOOD ELEMENTARY"]
[155,105,"GA",1124,"Winkler Elementary","","GA",1124,"WINKLER ELEMENTARY"]
[156,174,"HA",1122,"Blumenort School","","HA",1122,"BLUMENORT SCHOOL"]
[157,174,"HA",1882,"Bothwell School","","HA",1882,"BOTHWELL SCHOOL"]
[158,174,"HA",2282,"Clearspring Middle School","","HA",2282,"CLEARSPRING MIDDLE SCHOOL"]
[159,174,"HA",1469,"Crystal Springs School","","HA",1469,"CRYSTAL SPRINGS SCHOOL"]
[160,174,"HA",1198,"Elmdale School","","HA",1198,"ELMDALE SCHOOL"]
[161,174,"HA",1693,"Green Valley School","","HA",1693,"GREEN VALLEY SCHOOL"]
[162,174,"HA",1234,"Kleefeld School","","HA",1234,"KLEEFELD SCHOOL"]
[163,174,"HA",1129,"Landmark Collegiate","","HA",1129,"LANDMARK COLLEGIATE"]
[164,174,"HA",2051,"Landmark Elementary School","","HA",2051,"LANDMARK ELEMENTARY SCHOOL"]
[165,174,"HA",1959,"Mitchell Elementary School","","HA",1959,"MITCHELL ELEMENTARY SCHOOL"]
[166,174,"HA",2229,"Mitchell Middle School","","HA",2229,"MITCHELL MIDDLE SCHOOL"]
[167,174,"HA",1777,"Niverville Elementary","","HA",1777,"NIVERVILLE ELEMENTARY"]
[168,174,"HA",2319,"Niverville High School","","HA",2319,"NIVERVILLE HIGH SCHOOL"]
[169,174,"HA",1309,"Niverville Middle School","","HA",1309,"NIVERVILLE MIDDLE SCHOOL"]
[170,174,"HA",1590,"South Oaks Elementary","","HA",1590,"SOUTH OAKS ELEMENTARY"]
[171,174,"HA",1513,"Southwood School","","HA",1513,"SOUTHWOOD SCHOOL"]
[172,174,"HA",1353,"Steinbach Regional Secondary","","HA",1353,"STEINBACH REGIONAL SECONDARY"]
[173,174,"HA",1437,"Stonybrook Middle School","","HA",1437,"STONYBROOK MIDDLE SCHOOL"]
[174,174,"HA",1182,"Woodlawn School","","HA",1182,"WOODLAWN SCHOOL"]
[175,155,"IN",1028,"Balmoral School","","IN",1028,"BALMORAL SCHOOL"]
[176,155,"IN",1752,"Brant-Argyle School","","IN",1752,"BRANT-ARGYLE SCHOOL"]
[177,155,"IN",1967,"Concord School","","IN",1967,"CONCORD SCHOOL"]
[178,155,"IN",1106,"École R. W. Bobby Bend School","","IN",1106,"ÉCOLE R. W. BOBBY BEND SCHOOL"]
[179,155,"IN",1282,"Grosse Isle School","","IN",1282,"GROSSE ISLE SCHOOL"]
[180,155,"IN",1610,"Kelsey School","","IN",1610,"KELSEY SCHOOL"]
[181,155,"IN",1283,"Lightly School","","IN",1283,"LIGHTLY SCHOOL"]
[182,155,"IN",2143,"Mallard School","","IN",2143,"MALLARD SCHOOL"]
[183,155,"IN",2299,"Meadow Lane School","","IN",2299,"MEADOW LANE SCHOOL"]
[184,155,"IN",1205,"New Haven School","","IN",1205,"NEW HAVEN SCHOOL"]
[185,155,"IN",1433,"Omega School","","IN",1433,"OMEGA SCHOOL"]
[186,155,"IN",2113,"Prairie Blossom School","","IN",2113,"PRAIRIE BLOSSOM SCHOOL"]
[187,155,"IN",1572,"Rock Lake School","","IN",1572,"ROCK LAKE SCHOOL"]
[188,155,"IN",1346,"Rosser School","","IN",1346,"ROSSER SCHOOL"]
[189,155,"IN",1879,"Stonewall Centennial School","","IN",1879,"STONEWALL CENTENNIAL SCHOOL"]
[190,155,"IN",1145,"Stonewall Collegiate","","IN",1145,"STONEWALL COLLEGIATE"]
[191,155,"IN",1381,"Stony Mountain Elementary","","IN",1381,"STONY MOUNTAIN ELEMENTARY"]
[192,155,"IN",1650,"Teulon Collegiate","","IN",1650,"TEULON COLLEGIATE"]
[193,155,"IN",1494,"Teulon Elementary","","IN",1494,"TEULON ELEMENTARY"]
[194,155,"IN",1908,"Warren Collegiate","","IN",1908,"WARREN COLLEGIATE"]
[195,155,"IN",1710,"Warren Elementary",{"$f":"IF(D200=H200,\"\",\"x\")","v":""},"IN",1710,"WARREN ELEMENTARY"]
[196,155,"IN",1160,"Woodlands School","","IN",1160,"WOODLANDS SCHOOL"]
[197,171,"KE",1021,"École Opasquia School","","KE",1021,"ÉCOLE OPASQUIA SCHOOL"]
[198,171,"KE",1386,"Kelsey Community School","","KE",1386,"KELSEY COMMUNITY SCHOOL"]
[{"$f":"A203+1","v":199},171,"KE",1724,"Margaret Barbour Collegiate Institute","","KE",1724,"MARGARET BARBOUR COLLEGIATE INSTITUTE"]
[200,171,"KE",1616,"Mary Duncan School","","KE",1616,"MARY DUNCAN SCHOOL"]
[201,171,"KE",1260,"Scott Bateman Middle School","","KE",1260,"SCOTT BATEMAN MIDDLE SCHOOL"]
[202,149,"LA",1816,"Alf Cuthbert School","","LA",1816,"ALF CUTHBERT SCHOOL"]
[203,149,"LA",1090,"Ashern Central School","","LA",1090,"ASHERN CENTRAL SCHOOL"]
[204,149,"LA",2116,"Ashern Early Years School","","LA",2116,"ASHERN EARLY YEARS SCHOOL"]
[205,149,"LA",1123,"Broad Valley Colony School","","LA",1123,"BROAD VALLEY COLONY SCHOOL"]
[206,149,"LA",1116,"Eriksdale School","","LA",1116,"ERIKSDALE SCHOOL"]
[207,149,"LA",1765,"Fisher Branch Collegiate","","LA",1765,"FISHER BRANCH COLLEGIATE"]
[208,149,"LA",1424,"Fisher Branch Early Years School","","LA",1424,"FISHER BRANCH EARLY YEARS SCHOOL"]
[209,149,"LA",1612,"Inwood School","","LA",1612,"INWOOD SCHOOL"]
[210,149,"LA",1130,"Lundar School","","LA",1130,"LUNDAR SCHOOL"]
[211,149,"LA",1168,"Marble Ridge Colony School","","LA",1168,"MARBLE RIDGE COLONY SCHOOL"]
[212,154,"LO",1483,"Centennial School","","LO",1483,"CENTENNIAL SCHOOL"]
[213,154,"LO",1040,"Daerwood School","","LO",1040,"DAERWOOD SCHOOL"]
[214,154,"LO",2256,"East Selkirk Middle School","","LO",2256,"EAST SELKIRK MIDDLE SCHOOL"]
[215,154,"LO",2083,"École Bonaventure","","LO",2083,"ÉCOLE BONAVENTURE"]
[216,154,"LO",1181,"Happy Thought School","","LO",1181,"HAPPY THOUGHT SCHOOL"]
[217,154,"LO",1657,"Lockport School","","LO",1657,"LOCKPORT SCHOOL"]
[218,154,"LO",1641,"Lord Selkirk Regional Secondary","","LO",1641,"LORD SELKIRK REGIONAL SECONDARY"]
[219,154,"LO",1598,"Mapleton School","","LO",1598,"MAPLETON SCHOOL"]
[220,154,"LO",2111,"Netley School","","LO",2111,"NETLEY SCHOOL"]
[221,154,"LO",1897,"Robert Smith Elementary","","LO",1897,"ROBERT SMITH ELEMENTARY"]
[222,154,"LO",1799,"Ruth Hooker School","","LO",1799,"RUTH HOOKER SCHOOL"]
[223,154,"LO",1835,"Selkirk Junior High","","LO",1835,"SELKIRK JUNIOR HIGH"]
[224,154,"LO",1640,"St. Andrews School","","LO",1640,"ST. ANDREWS SCHOOL"]
[225,154,"LO",1343,"Walter Whyte School","","LO",1343,"WALTER WHYTE SCHOOL"]
[226,154,"LO",1288,"William S. Patterson School","","LO",1288,"WILLIAM S. PATTERSON SCHOOL"]
[227,186,"LR",1136,"Archwood School","","LR",1136,"ARCHWOOD SCHOOL"]
[228,186,"LR",1878,"Collège Béliveau","","LR",1878,"COLLÈGE BÉLIVEAU"]
[229,186,"LR",2027,"Collège Jeanne-Sauvé","","LR",2027,"COLLÈGE JEANNE-SAUVÉ"]
[230,186,"LR",1823,"Dakota Collegiate","","LR",1823,"DAKOTA COLLEGIATE"]
[231,186,"LR",1441,"Darwin School","","LR",1441,"DARWIN SCHOOL"]
[232,186,"LR",1589,"Dr. D. W. Penner School","","LR",1589,"DR. D. W. PENNER SCHOOL"]
[233,186,"LR",1855,"École George Mcdowell","","LR",1855,"ÉCOLE GEORGE MCDOWELL"]
[234,186,"LR",1404,"École Guyot","","LR",1404,"ÉCOLE GUYOT"]
[235,186,"LR",1492,"École Henri-Bergeron","","LR",1492,"ÉCOLE HENRI-BERGERON"]
[236,186,"LR",1790,"École Howden","","LR",1790,"ÉCOLE HOWDEN"]
[237,186,"LR",2100,"École Julie-Riel","","LR",2100,"ÉCOLE JULIE-RIEL"]
[238,186,"LR",1018,"École Marie-Anne-Gaboury","","LR",1018,"ÉCOLE MARIE-ANNE-GABOURY"]
[239,186,"LR",1016,"École Provencher","","LR",1016,"ÉCOLE PROVENCHER"]
[240,186,"LR",2310,"École Sage Creek School","","LR",2310,"ÉCOLE SAGE CREEK SCHOOL"]
[241,186,"LR",1965,"École Saint-Germain","","LR",1965,"ÉCOLE SAINT-GERMAIN"]
[242,186,"LR",1986,"École Van Belleghem","","LR",1986,"ÉCOLE VAN BELLEGHEM"]
[243,186,"LR",1366,"École Varennes","","LR",1366,"ÉCOLE VARENNES"]
[244,186,"LR",1128,"Frontenac School","","LR",1128,"FRONTENAC SCHOOL"]
[245,186,"LR",1039,"General Vanier School","","LR",1039,"GENERAL VANIER SCHOOL"]
[246,186,"LR",1530,"Glenlawn Collegiate","","LR",1530,"GLENLAWN COLLEGIATE"]
[247,186,"LR",1336,"Glenwood School","","LR",1336,"GLENWOOD SCHOOL"]
[248,186,"LR",2020,"H. S. Paul School","","LR",2020,"H. S. PAUL SCHOOL"]
[249,186,"LR",1017,"Hastings School","","LR",1017,"HASTINGS SCHOOL"]
[250,186,"LR",2062,"Highbury School","","LR",2062,"HIGHBURY SCHOOL"]
[251,186,"LR",2152,"Island Lakes Community School","","LR",2152,"ISLAND LAKES COMMUNITY SCHOOL"]
[252,186,"LR",1246,"J. H. Bruns Collegiate","","LR",1246,"J. H. BRUNS COLLEGIATE"]
[253,186,"LR",1571,"Lavallee School","","LR",1571,"LAVALLEE SCHOOL"]
[254,186,"LR",1171,"Louis Riel S.D. Arts And Technology Ctr.","","LR",1171,"LOUIS RIEL S.D. ARTS AND TECHNOLOGY CTR."]
[255,186,"LR",1542,"Marion School","","LR",1542,"MARION SCHOOL"]
[256,186,"LR",1156,"Minnetonka School","","LR",1156,"MINNETONKA SCHOOL"]
[257,186,"LR",1833,"Nelson Mcintyre Collegiate","","LR",1833,"NELSON MCINTYRE COLLEGIATE"]
[258,186,"LR",1374,"Niakwa Place School","","LR",1374,"NIAKWA PLACE SCHOOL"]
[259,186,"LR",1189,"Nordale School",{"$f":"IF(D264=H264,\"\",\"x\")","v":""},"LR",1189,"NORDALE SCHOOL"]
[260,186,"LR",1964,"Samuel Burland School","","LR",1964,"SAMUEL BURLAND SCHOOL"]
[261,186,"LR",1782,"Shamrock School","","LR",1782,"SHAMROCK SCHOOL"]
[262,186,"LR",1421,"St. George School","","LR",1421,"ST. GEORGE SCHOOL"]
[{"$f":"A267+1","v":263},186,"LR",1669,"Victor H.L. Wyatt School","","LR",1669,"VICTOR H.L. WYATT SCHOOL"]
[264,186,"LR",1468,"Victor Mager School","","LR",1468,"VICTOR MAGER SCHOOL"]
[265,186,"LR",1607,"Windsor Park Collegiate","","LR",1607,"WINDSOR PARK COLLEGIATE"]
[266,186,"LR",1420,"Windsor School","","LR",1420,"WINDSOR SCHOOL"]
[267,187,"MO",1072,"Dauphin Regional Comp Secondary","","MO",1072,"DAUPHIN REGIONAL COMP SECONDARY"]
[268,187,"MO",1328,"École Macneill","","MO",1328,"ÉCOLE MACNEILL"]
[269,187,"MO",1161,"Ethelbert School","","MO",1161,"ETHELBERT SCHOOL"]
[270,187,"MO",1889,"Gilbert Plains Collegiate Institute","","MO",1889,"GILBERT PLAINS COLLEGIATE INSTITUTE"]
[271,187,"MO",1667,"Gilbert Plains Elementary","","MO",1667,"GILBERT PLAINS ELEMENTARY"]
[272,187,"MO",1582,"Goose Lake High","","MO",1582,"GOOSE LAKE HIGH"]
[273,187,"MO",1735,"Grandview School","","MO",1735,"GRANDVIEW SCHOOL"]
[274,187,"MO",1223,"Henderson Elementary","","MO",1223,"HENDERSON ELEMENTARY"]
[275,187,"MO",1457,"Lt. Col. Barker V.C. School","","MO",1457,"LT. COL. BARKER V.C. SCHOOL"]
[276,187,"MO",1323,"Mackenzie Middle School","","MO",1323,"MACKENZIE MIDDLE SCHOOL"]
[277,187,"MO",1118,"Ochre River School","","MO",1118,"OCHRE RIVER SCHOOL"]
[278,187,"MO",1355,"Roblin Elementary","","MO",1355,"ROBLIN ELEMENTARY"]
[279,187,"MO",1486,"Smith-Jackson School","","MO",1486,"SMITH-JACKSON SCHOOL"]
[280,187,"MO",1411,"Whitmore School","","MO",1411,"WHITMORE SCHOOL"]
[281,187,"MO",1575,"Winnipegosis Collegiate","","MO",1575,"WINNIPEGOSIS COLLEGIATE"]
[282,187,"MO",1349,"Winnipegosis Elementary","","MO",1349,"WINNIPEGOSIS ELEMENTARY"]
[283,102,"MY",1707,"Burntwood Elementary","","MY",1707,"BURNTWOOD ELEMENTARY"]
[284,102,"MY",1417,"Deerwood School","","MY",1417,"DEERWOOD SCHOOL"]
[285,102,"MY",1684,"Juniper School","","MY",1684,"JUNIPER SCHOOL"]
[286,102,"MY",1341,"R. D. Parker Collegiate","","MY",1341,"R. D. PARKER COLLEGIATE"]
[287,102,"MY",1033,"Riverside School","","MY",1033,"RIVERSIDE SCHOOL"]
[288,102,"MY",1403,"Wapanohk Community School","","MY",1403,"WAPANOHK COMMUNITY SCHOOL"]
[289,102,"MY",1495,"Westwood Elementary","","MY",1495,"WESTWOOD ELEMENTARY"]
[290,194,"PA",1705,"Binscarth Elementary","","PA",1705,"BINSCARTH ELEMENTARY"]
[291,194,"PA",1042,"Birtle Collegiate","","PA",1042,"BIRTLE COLLEGIATE"]
[292,194,"PA",1426,"Birtle Elementary","","PA",1426,"BIRTLE ELEMENTARY"]
[293,194,"PA",1014,"Decker Colony School","","PA",1014,"DECKER COLONY SCHOOL"]
[294,194,"PA",1554,"Hamiota Collegiate","","PA",1554,"HAMIOTA COLLEGIATE"]
[295,194,"PA",1277,"Hamiota Elementary","","PA",1277,"HAMIOTA ELEMENTARY"]
[296,194,"PA",1057,"Inglis Elementary","","PA",1057,"INGLIS ELEMENTARY"]
[297,194,"PA",1727,"Major Pratt School","","PA",1727,"MAJOR PRATT SCHOOL"]
[298,194,"PA",1093,"Miniota School","","PA",1093,"MINIOTA SCHOOL"]
[299,194,"PA",2313,"Monarch Colony School","","PA",2313,"MONARCH COLONY SCHOOL"]
[300,194,"PA",1546,"Rossburn Collegiate","","PA",1546,"ROSSBURN COLLEGIATE"]
[301,194,"PA",1827,"Rossburn Elementary","","PA",1827,"ROSSBURN ELEMENTARY"]
[302,194,"PA",1566,"Shoal Lake School","","PA",1566,"SHOAL LAKE SCHOOL"]
[303,194,"PA",1125,"Strathclair Community School","","PA",1125,"STRATHCLAIR COMMUNITY SCHOOL"]
[304,194,"PA",1555,"Waywayseecappo Community School","","PA",1555,"WAYWAYSEECAPPO COMMUNITY SCHOOL"]
[305,188,"PE",1138,"Acadia School","","PE",1138,"ACADIA JUNIOR HIGH SCHOOL"]
[306,188,"PE",1104,"Arthur A. Leach Junior High","","PE",1104,"ARTHUR A. LEACH JUNIOR HIGH"]
[307,188,"PE",1958,"Bairdmore School","","PE",1958,"BAIRDMORE SCHOOL"]
[308,188,"PE",1676,"Beaumont School","","PE",1676,"BEAUMONT SCHOOL"]
[309,188,"PE",1754,"Beaverlodge School","","PE",1754,"BEAVERLODGE SCHOOL"]
[310,188,"PE",1914,"Chancellor Elementary","","PE",1914,"CHANCELLOR ELEMENTARY"]
[311,188,"PE",1378,"Dalhousie School","","PE",1378,"DALHOUSIE SCHOOL"]
[312,188,"PE",1896,"École Charleswood School","","PE",1896,"ÉCOLE CHARLESWOOD SCHOOL"]
[313,188,"PE",1608,"École Crane","","PE",1608,"ÉCOLE CRANE"]
[314,188,"PE",1511,"École Dieppe","","PE",1511,"ÉCOLE DIEPPE"]
[315,188,"PE",1638,"École Saint-Avila","","PE",1638,"ÉCOLE SAINT-AVILA"]
[316,188,"PE",2302,"École South Pointe School","","PE",2302,"ÉCOLE SOUTH POINTE SCHOOL"]
[317,188,"PE",1789,"École Tuxedo Park","","PE",1789,"ÉCOLE TUXEDO PARK"]
[318,188,"PE",1262,"École Viscount Alexander","","PE",1262,"ÉCOLE VISCOUNT ALEXANDER"]
[319,188,"PE",1281,"Fort Richmond Collegiate","","PE",1281,"FORT RICHMOND COLLEGIATE"]
[320,188,"PE",1231,"General Byng School","","PE",1231,"GENERAL BYNG SCHOOL"]
[321,188,"PE",2132,"Henry G. Izatt Middle School","","PE",2132,"HENRY G. IZATT MIDDLE SCHOOL"]
[322,188,"PE",1273,"Laidlaw School","","PE",1273,"LAIDLAW SCHOOL"]
[323,188,"PE",2030,"Linden Meadows School",{"$f":"IF(D328=H328,\"\",\"x\")","v":""},"PE",2030,"LINDEN MEADOWS SCHOOL"]
[324,188,"PE",1691,"Oak Park High","","PE",1691,"OAK PARK HIGH"]
[325,188,"PE",1227,"Oakenwald School","","PE",1227,"OAKENWALD SCHOOL"]
[326,188,"PE",1975,"Pacific Junction School","","PE",1975,"PACIFIC JUNCTION SCHOOL"]
[{"$f":"A331+1","v":327},188,"PE",2304,"Pembina Trails Alternative High School","","PE",2304,"PEMBINA TRAILS ALTERNATIVE HIGH SCHOOL"]
[328,188,"PE",2322,"Pembina Trails Early College School","","PE",2322,"PEMBINA TRAILS EARLY COLLEGE SCHOOL"]
[329,188,"PE",1263,"R.H.G. Bonnycastle School","","PE",1263,"R.H.G. BONNYCASTLE SCHOOL"]
[330,188,"PE",1393,"Ralph Maybank School","","PE",1393,"RALPH MAYBANK SCHOOL"]
[331,188,"PE",1202,"River West Park School","","PE",1202,"RIVER WEST PARK SCHOOL"]
[332,188,"PE",1472,"Royal School","","PE",1472,"ROYAL SCHOOL"]
[333,188,"PE",1498,"Ryerson Elementary","","PE",1498,"RYERSON ELEMENTARY"]
[334,188,"PE",1114,"Shaftesbury High","","PE",1114,"SHAFTESBURY HIGH"]
[335,188,"PE",1976,"Van Walleghem School","","PE",1976,"VAN WALLEGHEM SCHOOL"]
[336,188,"PE",1062,"Vincent Massey Collegiate","","PE",1062,"VINCENT MASSEY COLLEGIATE"]
[337,188,"PE",1398,"Westdale Junior High","","PE",1398,"WESTDALE JUNIOR HIGH"]
[338,188,"PE",1512,"Westgrove School","","PE",1512,"WESTGROVE SCHOOL"]
[339,188,"PE",2065,"Whyte Ridge Elementary","","PE",2065,"WHYTE RIDGE ELEMENTARY"]
[340,127,"PI",1864,"Austin Elementary","","PI",1864,"AUSTIN ELEMENTARY"]
[341,127,"PI",1859,"Beaver Creek School","","PI",1859,"BEAVER CREEK SCHOOL"]
[342,127,"PI",2003,"Cascade Colony School","","PI",2003,"CASCADE COLONY SCHOOL"]
[343,127,"PI",2283,"Emerald Colony School","","PI",2283,"EMERALD COLONY SCHOOL"]
[344,127,"PI",1817,"Forest Home School","","PI",1817,"FOREST HOME SCHOOL"]
[345,127,"PI",1753,"Gladstone Elementary","","PI",1753,"GLADSTONE ELEMENTARY"]
[346,127,"PI",1220,"Hidden Valley School","","PI",1220,"HIDDEN VALLEY SCHOOL"]
[347,127,"PI",1023,"Langruth Elementary","","PI",1023,"LANGRUTH ELEMENTARY"]
[348,127,"PI",1465,"Macgregor Collegiate","","PI",1465,"MACGREGOR COLLEGIATE"]
[349,127,"PI",1447,"Macgregor Elementary","","PI",1447,"MACGREGOR ELEMENTARY"]
[350,127,"PI",1898,"Muller School","","PI",1898,"MULLER SCHOOL"]
[351,127,"PI",1726,"Plumas Elementary","","PI",1726,"PLUMAS ELEMENTARY"]
[352,127,"PI",1146,"West Plains School","","PI",1146,"WEST PLAINS SCHOOL"]
[353,127,"PI",1874,"William Morton Collegiate","","PI",1874,"WILLIAM MORTON COLLEGIATE"]
[354,121,"PO",1989,"Brantwood School","","PO",1989,"BRANTWOOD SCHOOL"]
[355,121,"PO",1703,"Brennan School","","PO",1703,"BRENNAN SCHOOL"]
[356,121,"PO",1142,"École Arthur Meighen School","","PO",1142,"ÉCOLE ARTHUR MEIGHEN SCHOOL"]
[357,121,"PO",1634,"École Crescentview School","","PO",1634,"ÉCOLE CRESCENTVIEW SCHOOL"]
[358,121,"PO",1269,"Fort La Reine School","","PO",1269,"FORT LA REINE SCHOOL"]
[359,121,"PO",1438,"Good Hope Colony School","","PO",1438,"GOOD HOPE COLONY SCHOOL"]
[360,121,"PO",1539,"Ingleside School","","PO",1539,"INGLESIDE SCHOOL"]
[361,121,"PO",1837,"La Verendrye School","","PO",1837,"LA VERENDRYE SCHOOL"]
[362,121,"PO",2040,"Norquay Colony School","","PO",2040,"NORQUAY COLONY SCHOOL"]
[363,121,"PO",1849,"North Memorial School","","PO",1849,"NORTH MEMORIAL SCHOOL"]
[364,121,"PO",2134,"Northern Breeze Colony School","","PO",2134,"NORTHERN BREEZE COLONY SCHOOL"]
[365,121,"PO",1237,"Oakville School","","PO",1237,"OAKVILLE SCHOOL"]
[366,121,"PO",1029,"Portage Collegiate Institute","","PO",1029,"PORTAGE COLLEGIATE INSTITUTE"]
[367,121,"PO",1757,"Sommerfeld Colony School","","PO",1757,"SOMMERFELD COLONY SCHOOL"]
[368,121,"PO",1055,"Sunnyside School","","PO",1055,"SUNNYSIDE SCHOOL"]
[369,121,"PO",2063,"Westroc School","","PO",2063,"WESTROC SCHOOL"]
[370,121,"PO",1003,"Woodland Colony School","","PO",1003,"WOODLAND COLONY SCHOOL"]
[371,121,"PO",1858,"Yellowquill School","","PO",1858,"YELLOWQUILL SCHOOL"]
[372,195,"PR",1871,"Barrickman Colony School","","PR",1871,"BARRICKMAN COLONY SCHOOL"]
[373,195,"PR",2276,"Blooming Prairie Colony School","","PR",2276,"BLOOMING PRAIRIE COLONY SCHOOL"]
[374,195,"PR",1422,"Bon Homme Colony School","","PR",1422,"BON HOMME COLONY SCHOOL"]
[375,195,"PR",1230,"Boyne View School","","PR",1230,"BOYNE VIEW SCHOOL"]
[376,195,"PR",1800,"Carman Collegiate","","PR",1800,"CARMAN COLLEGIATE"]
[377,195,"PR",1872,"Carman Elementary","","PR",1872,"CARMAN ELEMENTARY"]
[378,195,"PR",1369,"Clearview Colony School","","PR",1369,"CLEARVIEW COLONY SCHOOL"]
[379,195,"PR",2312,"Eagle Creek Colony School","","PR",2312,"EAGLE CREEK COLONY SCHOOL"]
[380,195,"PR",1268,"École Saint-Eustache","","PR",1268,"ÉCOLE SAINT-EUSTACHE"]
[381,195,"PR",1289,"Elm Creek School","","PR",1289,"ELM CREEK SCHOOL"]
[382,195,"PR",1527,"Huron Colony School","","PR",1527,"HURON COLONY SCHOOL"]
[383,195,"PR",1751,"Iberville Colony School","","PR",1751,"IBERVILLE COLONY SCHOOL"]
[384,195,"PR",1052,"James Valley Colony School","","PR",1052,"JAMES VALLEY COLONY SCHOOL"]
[385,195,"PR",1053,"Lakeside Colony School","","PR",1053,"LAKESIDE COLONY SCHOOL"]
[386,195,"PR",1290,"Maple Creek School","","PR",1290,"MAPLE CREEK SCHOOL"]
[387,195,"PR",1642,"Maxwell Colony School",{"$f":"IF(D392=H392,\"\",\"x\")","v":""},"PR",1642,"MAXWELL COLONY SCHOOL"]
[388,195,"PR",1514,"Miami School","","PR",1514,"MIAMI SCHOOL"]
[389,195,"PR",1581,"Roland Elementary","","PR",1581,"ROLAND ELEMENTARY"]
[390,195,"PR",2033,"Rosebank Colony School","","PR",2033,"ROSEBANK COLONY SCHOOL"]
[391,195,"PR",1722,"Rosedale Colony School","","PR",1722,"ROSEDALE COLONY SCHOOL"]
[{"$f":"A396+1","v":392},195,"PR",2071,"Sky View School","","PR",2071,"SKY VIEW SCHOOL"]
[393,195,"PR",1054,"St. Francois Xavier Community School","","PR",1054,"ST. FRANCOIS XAVIER COMMUNITY SCHOOL"]
[394,195,"PR",1558,"St. Laurent School","","PR",1558,"ST. LAURENT SCHOOL"]
[395,195,"PR",1070,"St. Paul'S Collegiate","","PR",1070,"ST. PAUL'S COLLEGIATE"]
[396,195,"PR",2045,"Starlite Colony School","","PR",2045,"STARLITE COLONY SCHOOL"]
[397,195,"PR",1443,"Waldheim Elementary","","PR",1443,"WALDHEIM ELEMENTARY"]
[398,193,"PS",1439,"Baldur School","","PS",1439,"BALDUR SCHOOL"]
[399,193,"PS",1092,"Boyne Valley School","","PS",1092,"BOYNE VALLEY SCHOOL"]
[400,193,"PS",2072,"Cartwright School","","PS",2072,"CARTWRIGHT SCHOOL"]
[401,193,"PS",1445,"Crystal City Early Years School","","PS",1445,"CRYSTAL CITY EARLY YEARS SCHOOL"]
[402,193,"PS",1559,"Evergreen Colony School","","PS",1559,"EVERGREEN COLONY SCHOOL"]
[403,193,"PS",1635,"Fairholme Colony School","","PS",1635,"FAIRHOLME COLONY SCHOOL"]
[404,193,"PS",1909,"Glenboro School","","PS",1909,"GLENBORO SCHOOL"]
[405,193,"PS",2278,"Harmony Colony School","","PS",2278,"HARMONY COLONY SCHOOL"]
[406,193,"PS",1322,"Holland Elementary","","PS",1322,"HOLLAND ELEMENTARY"]
[407,193,"PS",2047,"Kamsley School","","PS",2047,"KAMSLEY SCHOOL"]
[408,193,"PS",1591,"Manitou Elementary","","PS",1591,"MANITOU ELEMENTARY"]
[409,193,"PS",1096,"Nellie Mcclung Collegiate","","PS",1096,"NELLIE MCCLUNG COLLEGIATE"]
[410,193,"PS",1348,"New Rosedale School","","PS",1348,"NEW ROSEDALE SCHOOL"]
[411,193,"PS",1301,"Pilot Mound School","","PS",1301,"PILOT MOUND SCHOOL"]
[412,193,"PS",1553,"Prairie Mountain Elementary School","","PS",1553,"PRAIRIE MOUNTAIN ELEMENTARY SCHOOL"]
[413,193,"PS",1370,"Prairie Mountain High School","","PS",1370,"PRAIRIE MOUNTAIN HIGH SCHOOL"]
[414,193,"PS",1644,"Sandy Bank School","","PS",1644,"SANDY BANK SCHOOL"]
[415,193,"PS",2084,"Shady Lane School","","PS",2084,"SHADY LANE SCHOOL"]
[416,193,"PS",1977,"Shamrock School","","PS",1977,"SHAMROCK SCHOOL"]
[417,193,"PS",1340,"St. Claude School Complex","","PS",1340,"ST. CLAUDE SCHOOL COMPLEX"]
[418,193,"PS",1455,"Ste. Marie School","","PS",1455,"STE. MARIE SCHOOL"]
[419,193,"PS",1841,"Thomas Greenway Middle Years School","","PS",1841,"THOMAS GREENWAY MIDDLE YEARS SCHOOL"]
[420,193,"PS",1873,"Treherne Collegiate","","PS",1873,"TREHERNE COLLEGIATE"]
[421,193,"PS",1238,"Treherne Elementary","","PS",1238,"TREHERNE ELEMENTARY"]
[422,193,"PS",1842,"Valleyview School","","PS",1842,"VALLEYVIEW SCHOOL"]
[423,193,"PS",1643,"West Valley Elementary","","PS",1643,"WEST VALLEY SCHOOL"]
[424,193,"PS",2088,"Whistling Wind School","","PS",2088,"WHISTLING WIND SCHOOL"]
[425,193,"PS",2073,"Willow Creek Colony School","","PS",2073,"WILLOW CREEK COLONY SCHOOL"]
[426,193,"PS",1978,"Windy Bay School","","PS",1978,"WINDY BAY SCHOOL"]
[427,190,"RE",2052,"Albright School","","RE",2052,"ALBRIGHT SCHOOL"]
[428,190,"RE",1824,"École Héritage Immersion","","RE",1824,"ÉCOLE HÉRITAGE IMMERSION"]
[429,190,"RE",1035,"École Saint-Malo School","","RE",1035,"ÉCOLE SAINT-MALO SCHOOL"]
[430,190,"RE",1771,"J. A. Cuddy Elementary","","RE",1771,"J. A. CUDDY ELEMENTARY"]
[431,190,"RE",1792,"Lowe Farm School","","RE",1792,"LOWE FARM SCHOOL"]
[432,190,"RE",1084,"Morris School","","RE",1084,"MORRIS SCHOOL"]
[433,190,"RE",1893,"Oak Bluff Community School","","RE",1893,"OAK BLUFF COMMUNITY SCHOOL"]
[434,190,"RE",1069,"Peace Valley School","","RE",1069,"PEACE VALLEY SCHOOL"]
[435,190,"RE",1579,"Rosenort School","","RE",1579,"ROSENORT SCHOOL"]
[436,190,"RE",1191,"Sanford Collegiate","","RE",1191,"SANFORD COLLEGIATE"]
[437,190,"RE",1633,"Starbuck School","","RE",1633,"STARBUCK SCHOOL"]
[438,190,"RE",1299,"Suncrest Colony School","","RE",1299,"SUNCREST COLONY SCHOOL"]
[439,190,"RE",1944,"Vermillion Colony School","","RE",1944,"VERMILLION COLONY SCHOOL"]
[440,196,"RI",1621,"Angus Mckay School","","RI",1621,"ANGUS MCKAY SCHOOL"]
[441,196,"RI",1762,"Arthur Day Middle School","","RI",1762,"ARTHUR DAY MIDDLE SCHOOL"]
[442,196,"RI",1869,"Bernie Wolfe Community School","","RI",1869,"BERNIE WOLFE SCHOOL"]
[443,196,"RI",1139,"Bertrun E. Glavin Elementary","","RI",1139,"BERTRUN E. GLAVIN SCHOOL"]
[444,196,"RI",1367,"Bird'S Hill School","","RI",1367,"BIRD'S HILL SCHOOL"]
[445,196,"RI",1805,"Chief Peguis Junior High","","RI",1805,"CHIEF PEGUIS MIDDLE SCHOOL"]
[446,196,"RI",1233,"Collège Miles Macdonell Collegiate","","RI",1233,"COLLÈGE MILES MACDONELL COLLEGIATE"]
[447,196,"RI",2032,"Collège Pierre-Elliott-Trudeau","","RI",2032,"COLLÈGE PIERRE-ELLIOTT-TRUDEAU"]
[448,196,"RI",1747,"Donwood School","","RI",1747,"DONWOOD SCHOOL"]
[449,196,"RI",1109,"Dr. F.W.L. Hamilton School","","RI",1109,"DR. F.W.L. HAMILTON SCHOOL"]
[450,196,"RI",1144,"École Centrale","","RI",1144,"ÉCOLE CENTRALE"]
[451,196,"RI",1538,"École John Henderson Junior High School",{"$f":"IF(D456=H456,\"\",\"x\")","v":""},"RI",1538,"ÉCOLE JOHN HENDERSON MIDDLE SCHOOL"]
[452,196,"RI",1856,"École Margaret-Underhill","","RI",1856,"ÉCOLE MARGARET-UNDERHILL"]
[453,196,"RI",1462,"École Munroe Junior High School","","RI",1462,"ÉCOLE MUNROE MIDDLE SCHOOL"]
[454,196,"RI",1709,"École Neil Campbell School","","RI",1709,"ÉCOLE NEIL CAMPBELL SCHOOL"]
[455,196,"RI",1312,"École Regent Park","","RI",1312,"ÉCOLE REGENT PARK"]
[{"$f":"A460+1","v":456},196,"RI",1783,"École Salisbury Morse Place School","","RI",1783,"ÉCOLE SALISBURY MORSE PLACE SCHOOL"]
[457,196,"RI",1298,"École Springfield Heights School","","RI",1298,"ÉCOLE SPRINGFIELD HEIGHTS SCHOOL"]
[458,196,"RI",1957,"École Sun Valley School","","RI",1957,"ÉCOLE SUN VALLEY SCHOOL"]
[459,196,"RI",1748,"Emerson Elementary","","RI",1748,"EMERSON SCHOOL"]
[460,196,"RI",1519,"Hampstead School","","RI",1519,"HAMPSTEAD SCHOOL"]
[461,196,"RI",1776,"Harold Hatcher School","","RI",1776,"HAROLD HATCHER SCHOOL"]
[462,196,"RI",1265,"John De Graff School","","RI",1265,"JOHN de GRAFF SCHOOL"]
[463,196,"RI",2136,"John G. Stewart School","","RI",2136,"JOHN G. STEWART SCHOOL"]
[464,196,"RI",1556,"John Pritchard School","","RI",1556,"JOHN PRITCHARD SCHOOL"]
[465,196,"RI",1663,"John W. Gunn Middle School","","RI",1663,"JOHN W. GUNN MIDDLE SCHOOL"]
[466,196,"RI",1992,"Joseph Teres School","","RI",1992,"JOSEPH TERES SCHOOL"]
[467,196,"RI",1847,"Kildonan-East Collegiate","","RI",1847,"KILDONAN-EAST COLLEGIATE"]
[468,196,"RI",1011,"Lord Wolseley School","","RI",1011,"LORD WOLSELEY SCHOOL"]
[469,196,"RI",1740,"Maple Leaf School","","RI",1740,"MAPLE LEAF SCHOOL"]
[470,196,"RI",1379,"Murdoch Mackay Collegiate","","RI",1379,"MURDOCH MACKAY COLLEGIATE"]
[471,196,"RI",1662,"Polson School","","RI",1662,"POLSON SCHOOL"]
[472,196,"RI",1264,"Prince Edward School","","RI",1264,"PRINCE EDWARD SCHOOL"]
[473,196,"RI",1741,"Princess Margaret School","","RI",1741,"PRINCESS MARGARET SCHOOL"]
[474,196,"RI",1687,"Radisson School","","RI",1687,"RADISSON SCHOOL"]
[475,196,"RI",1755,"River East Collegiate","","RI",1755,"RIVER EAST COLLEGIATE"]
[476,196,"RI",1394,"Robert Andrews School","","RI",1394,"ROBERT ANDREWS MIDDLE SCHOOL"]
[477,196,"RI",1746,"Sherwood School","","RI",1746,"SHERWOOD SCHOOL"]
[478,196,"RI",1081,"Transcona Collegiate","","RI",1081,"TRANSCONA COLLEGIATE"]
[479,196,"RI",1105,"Valley Gardens Junior High","","RI",1105,"VALLEY GARDENS MIDDLE SCHOOL"]
[480,196,"RI",1020,"Wayoata School","","RI",1020,"WAYOATA SCHOOL"]
[481,196,"RI",1806,"Westview School","","RI",1806,"WESTVIEW SCHOOL"]
[482,156,"RO",1163,"Cool Spring Colony School","","RO",1163,"COOL SPRING COLONY SCHOOL"]
[483,156,"RO",1728,"Deerboine Colony School","","RO",1728,"DEERBOINE COLONY SCHOOL"]
[484,156,"RO",1169,"Douglas Elementary","","RO",1169,"DOUGLAS ELEMENTARY"]
[485,156,"RO",1723,"Elton Collegiate","","RO",1723,"ELTON COLLEGIATE"]
[486,156,"RO",1818,"Erickson Collegiate Institute","","RO",1818,"ERICKSON COLLEGIATE INSTITUTE"]
[487,156,"RO",1918,"Erickson Elementary","","RO",1918,"ERICKSON ELEMENTARY"]
[488,156,"RO",1876,"Forrest Elementary","","RO",1876,"FORREST ELEMENTARY"]
[489,156,"RO",1679,"Glendale School","","RO",1679,"GLENDALE SCHOOL"]
[490,156,"RO",1501,"Minnedosa Collegiate","","RO",1501,"MINNEDOSA COLLEGIATE"]
[491,156,"RO",2139,"Oak River Colony School","","RO",2139,"OAK RIVER COLONY SCHOOL"]
[492,156,"RO",1158,"Oak River Elementary","","RO",1158,"OAK RIVER ELEMENTARY"]
[493,156,"RO",1924,"Onanole Elementary","","RO",1924,"ONANOLE ELEMENTARY"]
[494,156,"RO",1324,"Rapid City School","","RO",1324,"RAPID CITY SCHOOL"]
[495,156,"RO",1794,"Rivers Collegiate","","RO",1794,"RIVERS COLLEGIATE"]
[496,156,"RO",1636,"Rivers Elementary","","RO",1636,"RIVERS ELEMENTARY"]
[497,156,"RO",1560,"Tanner'S Crossing School","","RO",1560,"TANNER'S CROSSING SCHOOL"]
[498,156,"RO",2297,"Westview Colony School","","RO",2297,"WESTVIEW COLONY SCHOOL"]
[499,136,"SE",1649,"Arborgate School","","SE",1649,"ARBORGATE SCHOOL"]
[500,136,"SE",1115,"Collège Lorette Collegiate","","SE",1115,"COLLÈGE LORETTE COLLEGIATE"]
[501,136,"SE",1475,"Collège Saint-Norbert Collegiate","","SE",1475,"COLLÈGE SAINT-NORBERT COLLEGIATE"]
[502,136,"SE",1316,"Dawson Trail School","","SE",1316,"DAWSON TRAIL SCHOOL"]
[503,136,"SE",1702,"École Île-Des-Chênes School","","SE",1702,"ÉCOLE ÎLE-DES-CHÊNES SCHOOL"]
[504,136,"SE",2138,"École Lorette Immersion","","SE",2138,"ÉCOLE LORETTE IMMERSION"]
[505,136,"SE",1609,"École Sainte-Anne Immersion","","SE",1609,"ÉCOLE SAINTE-ANNE IMMERSION"]
[506,136,"SE",1622,"École Saint-Norbert Immersion","","SE",1622,"ÉCOLE SAINT-NORBERT IMMERSION"]
[507,136,"SE",1632,"École St. Adolphe School","","SE",1632,"ÉCOLE ST. ADOLPHE SCHOOL"]
[508,136,"SE",2115,"La Barriere Crossings School","","SE",2115,"LA BARRIERE CROSSINGS SCHOOL"]
[509,136,"SE",1785,"La Salle School","","SE",1785,"LA SALLE SCHOOL"]
[510,136,"SE",1716,"Parc La Salle School","","SE",1716,"PARC LA SALLE SCHOOL"]
[511,136,"SE",1600,"Richer School","","SE",1600,"RICHER SCHOOL"]
[512,136,"SE",2089,"Ste. Anne Collegiate","","SE",2089,"STE. ANNE COLLEGIATE"]
[513,136,"SE",1442,"Ste. Anne Elementary School","","SE",1442,"STE. ANNE ELEMENTARY SCHOOL"]
[514,118,"SO",2294,"Amber Trails Community School","","SO",2294,"AMBER TRAILS COMMUNITY SCHOOL"]
[515,118,"SO",1088,"Arthur E. Wright Community School",{"$f":"IF(D520=H520,\"\",\"x\")","v":""},"SO",1088,"ARTHUR E. WRIGHT COMMUNITY SCHOOL"]
[516,118,"SO",1564,"Collège Garden City Collegiate","","SO",1564,"COLLÈGE GARDEN CITY COLLEGIATE"]
[517,118,"SO",1410,"Collicutt School","","SO",1410,"COLLICUTT SCHOOL"]
[518,118,"SO",1940,"École Belmont","","SO",1940,"ÉCOLE BELMONT"]
[519,118,"SO",2019,"École Constable Edward Finney School","","SO",2019,"ÉCOLE CONSTABLE EDWARD FINNEY SCHOOL"]
[{"$f":"A524+1","v":520},118,"SO",2064,"École Leila North Community School","","SO",2064,"ÉCOLE LEILA NORTH COMMUNITY SCHOOL"]
[521,118,"SO",2303,"École Riviere Rouge","","SO",2303,"ÉCOLE RIVIERE ROUGE"]
[522,118,"SO",2126,"École Seven Oaks Middle School","","SO",2126,"ÉCOLE SEVEN OAKS MIDDLE SCHOOL"]
[523,118,"SO",2328,"École Templeton","","SO",2328,"ÉCOLE TEMPLETON"]
[524,118,"SO",2259,"Edmund Partridge Community School","","SO",2259,"EDMUND PARTRIDGE COMMUNITY SCHOOL"]
[525,118,"SO",1639,"Elwick Community School","","SO",1639,"ELWICK COMMUNITY SCHOOL"]
[526,118,"SO",1050,"Forest Park School","","SO",1050,"FOREST PARK SCHOOL"]
[527,118,"SO",1295,"Governor Semple School","","SO",1295,"GOVERNOR SEMPLE SCHOOL"]
[528,118,"SO",1333,"H. C. Avery Middle School","","SO",1333,"H. C. AVERY MIDDLE SCHOOL"]
[529,118,"SO",1375,"James Nisbet Community School","","SO",1375,"JAMES NISBET COMMUNITY SCHOOL"]
[530,118,"SO",1892,"Maples Collegiate Institute","","SO",1892,"MAPLES COLLEGIATE"]
[531,118,"SO",2306,"Maples Met School","","SO",2306,"MAPLES MET SCHOOL"]
[532,118,"SO",1769,"Margaret Park School","","SO",1769,"MARGARET PARK SCHOOL"]
[533,118,"SO",2298,"Met School","","SO",2298,"MET SCHOOL"]
[534,118,"SO",1080,"O. V. Jewitt Elementary","","SO",1080,"O. V. JEWITT ELEMENTARY"]
[535,118,"SO",2096,"Riverbend Community School","","SO",2096,"RIVERBEND COMMUNITY SCHOOL"]
[536,118,"SO",1078,"Shkola R.F. Morrison School","","SO",1078,"SHKOLA R.F. MORRISON SCHOOL"]
[537,118,"SO",1079,"Victory School","","SO",1079,"VICTORY SCHOOL"]
[538,118,"SO",1019,"West Kildonan Collegiate","","SO",1019,"WEST KILDONAN COLLEGIATE"]
[539,118,"SO",1508,"West St. Paul School","","SO",1508,"WEST ST. PAUL SCHOOL"]
[540,191,"SR",1594,"Deloraine School","","SR",1594,"DELORAINE SCHOOL"]
[541,191,"SR",2049,"Green Acres Colony School","","SR",2049,"GREEN ACRES COLONY SCHOOL"]
[542,191,"SR",1153,"Hartney School","","SR",1153,"HARTNEY SCHOOL"]
[543,191,"SR",1372,"Maple Grove Colony School","","SR",1372,"MAPLE GROVE COLONY SCHOOL"]
[544,191,"SR",1385,"Melita School","","SR",1385,"MELITA SCHOOL"]
[545,191,"SR",1186,"Nature Valley Colony School","","SR",1186,"NATURE VALLEY COLONY SCHOOL"]
[546,191,"SR",1772,"Newdale Colony School","","SR",1772,"NEWDALE COLONY SCHOOL"]
[547,191,"SR",2314,"Oakland Colony School","","SR",2314,"OAKLAND SCHOOL"]
[548,191,"SR",1615,"Pierson School","","SR",1615,"PIERSON SCHOOL"]
[549,191,"SR",1066,"Souris River Colony School","","SR",1066,"SOURIS RIVER COLONY SCHOOL"]
[550,191,"SR",1250,"Souris School","","SR",1250,"SOURIS SCHOOL"]
[551,191,"SR",1458,"Waskada School","","SR",1458,"WASKADA SCHOOL"]
[552,191,"SR",1396,"Wawanesa School","","SR",1396,"WAWANESA SCHOOL"]
[553,114,"ST",1466,"Athlone School","","ST",1466,"ATHLONE SCHOOL"]
[554,114,"ST",1524,"Brooklands School","","ST",1524,"BROOKLANDS SCHOOL"]
[555,114,"ST",1467,"Bruce Middle School","","ST",1467,"BRUCE MIDDLE SCHOOL"]
[556,114,"ST",1167,"Buchanan School","","ST",1167,"BUCHANAN SCHOOL"]
[557,114,"ST",1135,"Collège Sturgeon Heights Collegiate","","ST",1135,"COLLÈGE STURGEON HEIGHTS COLLEGIATE"]
[558,114,"ST",1358,"Crestview School","","ST",1358,"CRESTVIEW SCHOOL"]
[559,114,"ST",1432,"École Assiniboine","","ST",1432,"ÉCOLE ASSINIBOINE"]
[560,114,"ST",1548,"École Bannatyne","","ST",1548,"ÉCOLE BANNATYNE"]
[561,114,"ST",1409,"École Ness","","ST",1409,"ÉCOLE NESS"]
[562,114,"ST",1922,"École Robert-Browning","","ST",1922,"ÉCOLE ROBERT-BROWNING"]
[563,114,"ST",2107,"George Waters Middle School","","ST",2107,"GEORGE WATERS MIDDLE SCHOOL"]
[564,114,"ST",1627,"Golden Gate Middle School","","ST",1627,"GOLDEN GATE MIDDLE SCHOOL"]
[565,114,"ST",1517,"Hedges Middle School","","ST",1517,"HEDGES MIDDLE SCHOOL"]
[566,114,"ST",1760,"Heritage School","","ST",1760,"HERITAGE SCHOOL"]
[567,114,"ST",2260,"Jameswood Alternative School","","ST",2260,"JAMESWOOD ALTERNATIVE SCHOOL"]
[568,114,"ST",1342,"John Taylor Collegiate","","ST",1342,"JOHN TAYLOR COLLEGIATE"]
[569,114,"ST",1597,"Lakewood School","","ST",1597,"LAKEWOOD SCHOOL"]
[570,114,"ST",1307,"Lincoln Middle School","","ST",1307,"LINCOLN MIDDLE SCHOOL"]
[571,114,"ST",1452,"Linwood School","","ST",1452,"LINWOOD SCHOOL"]
[572,114,"ST",1197,"Phoenix School","","ST",1197,"PHOENIX SCHOOL"]
[573,114,"ST",1655,"Sansome School","","ST",1655,"SANSOME SCHOOL"]
[574,114,"ST",1781,"St. James Collegiate","","ST",1781,"ST. JAMES COLLEGIATE"]
[575,114,"ST",1506,"Stevenson School","","ST",1506,"STEVENSON SCHOOL"]
[576,114,"ST",1895,"Strathmillan School","","ST",1895,"STRATHMILLAN SCHOOL"]
[577,114,"ST",1252,"Voyageur School","","ST",1252,"VOYAGEUR SCHOOL"]
[578,114,"ST",1076,"Westwood Collegiate","","ST",1076,"WESTWOOD COLLEGIATE"]
[579,189,"SU",1027,"Anola School",{"$f":"IF(D584=H584,\"\",\"x\")","v":""},"SU",1027,"ANOLA SCHOOL"]
[580,189,"SU",1361,"Centennial School","","SU",1361,"CENTENNIAL SCHOOL"]
[581,189,"SU",1749,"École Beauséjour Early Years","","SU",1749,"ÉCOLE BEAUSÉJOUR EARLY YEARS"]
[582,189,"SU",1888,"École Dugald School","","SU",1888,"ÉCOLE DUGALD SCHOOL"]
[583,189,"SU",1360,"École Edward-Schreyer School","","SU",1360,"ÉCOLE EDWARD-SCHREYER SCHOOL"]
[584,189,"SU",1677,"École Powerview School","","SU",1677,"ÉCOLE POWERVIEW SCHOOL"]
[{"$f":"A589+1","v":585},189,"SU",1266,"Gillis School","","SU",1266,"GILLIS SCHOOL"]
[586,189,"SU",1094,"Grafton School","","SU",1094,"GRAFTON SCHOOL"]
[587,189,"SU",1881,"Gross Colony School","","SU",1881,"GROSS COLONY SCHOOL"]
[588,189,"SU",1531,"Hazelridge School","","SU",1531,"HAZELRIDGE SCHOOL"]
[589,189,"SU",2106,"Heartland Colony School","","SU",2106,"HEARTLAND COLONY SCHOOL"]
[590,189,"SU",1809,"Hofer School","","SU",1809,"HOFER SCHOOL"]
[591,189,"SU",1012,"Lac Du Bonnet Senior","","SU",1012,"LAC DU BONNET SENIOR"]
[592,189,"SU",1190,"Oak Bank Elementary","","SU",1190,"OAK BANK ELEMENTARY"]
[593,189,"SU",1352,"Richland School","","SU",1352,"RICHLAND SCHOOL"]
[594,189,"SU",1485,"Springfield Collegiate","","SU",1485,"SPRINGFIELD COLLEGIATE"]
[595,189,"SU",1296,"Springfield Middle School","","SU",1296,"SPRINGFIELD MIDDLE SCHOOL"]
[596,189,"SU",1692,"Springwell School","","SU",1692,"SPRINGWELL SCHOOL"]
[597,189,"SU",1699,"Whitemouth School","","SU",1699,"WHITEMOUTH SCHOOL"]
[598,120,"SW",1487,"Benito School","","SW",1487,"BENITO SCHOOL"]
[599,120,"SW",1097,"Bowsman School","","SW",1097,"BOWSMAN SCHOOL"]
[600,120,"SW",1390,"École Swan River South School","","SW",1390,"ÉCOLE SWAN RIVER SOUTH SCHOOL"]
[601,120,"SW",1193,"Heyes Elementary","","SW",1193,"HEYES ELEMENTARY"]
[602,120,"SW",1535,"Minitonas Middle Years School","","SW",1535,"MINITONAS SCHOOL"]
[603,120,"SW",1576,"Swan Valley Regional Secondary School","","SW",1576,"SWAN VALLEY REGIONAL SECONDARY SCHOOL"]
[604,120,"SW",1085,"Taylor Elementary","","SW",1085,"TAYLOR ELEMENTARY"]
[605,141,"TM",1521,"Boissevain School","","TM",1521,"BOISSEVAIN SCHOOL"]
[606,141,"TM",2238,"Can Am Colony School","","TM",2238,"CAN AM COLONY SCHOOL"]
[607,141,"TM",1098,"Holmfield Colony School","","TM",1098,"HOLMFIELD COLONY SCHOOL"]
[608,141,"TM",1828,"Killarney School","","TM",1828,"KILLARNEY SCHOOL"]
[609,141,"TM",1376,"Mayfair Colony School","","TM",1376,"MAYFAIR COLONY SCHOOL"]
[610,141,"TM",1471,"Minto School","","TM",1471,"MINTO SCHOOL"]
[611,141,"TM",1844,"Wellwood School","","TM",1844,"WELLWOOD SCHOOL"]
[612,128,"TR",1613,"Alonsa School","","TR",1613,"ALONSA SCHOOL"]
[613,128,"TR",1860,"École Laurier","","TR",1860,"ÉCOLE LAURIER"]
[614,128,"TR",1063,"Glenella School","","TR",1063,"GLENELLA SCHOOL"]
[615,128,"TR",1623,"Grass River School","","TR",1623,"GRASS RIVER SCHOOL"]
[616,128,"TR",1222,"Mccreary School","","TR",1222,"MCCREARY SCHOOL"]
[617,128,"TR",1900,"Parkview School","","TR",1900,"PARKVIEW SCHOOL"]
[618,128,"TR",1335,"Ste. Rose School","","TR",1335,"STE. ROSE SCHOOL"]
[619,123,"WE",1919,"Maple Leaf Elementary School","","WE",1919,"MAPLE LEAF ELEMENTARY SCHOOL"]
[620,123,"WE",2029,"Minnewasta School","","WE",2029,"MINNEWASTA SCHOOL"]
[621,123,"WE",1428,"Morden Collegiate","","WE",1428,"MORDEN COLLEGIATE"]
[622,123,"WE",1885,"Morden Middle School","","WE",1885,"MORDEN MIDDLE SCHOOL"]
[623,151,"WI",1061,"Andrew Mynarski V.C. School","","WI",1061,"ANDREW MYNARSKI V.C. SCHOOL"]
[624,151,"WI",1060,"Argyle Alternative High School","","WI",1060,"ARGYLE ALTERNATIVE HIGH SCHOOL"]
[625,151,"WI",1891,"Brock-Corydon School","","WI",1891,"BROCK-CORYDON SCHOOL"]
[626,151,"WI",1272,"Carpathia School","","WI",1272,"CARPATHIA SCHOOL"]
[627,151,"WI",1113,"Cecil Rhodes School","","WI",1113,"CECIL RHODES SCHOOL"]
[628,151,"WI",1853,"Champlain School","","WI",1853,"CHAMPLAIN SCHOOL"]
[629,151,"WI",2050,"Children Of The Earth High School","","WI",2050,"CHILDREN OF THE EARTH HIGH SCHOOL"]
[630,151,"WI",1715,"Churchill High","","WI",1715,"CHURCHILL HIGH SCHOOL"]
[631,151,"WI",1541,"Clifton School","","WI",1541,"CLIFTON SCHOOL"]
[632,151,"WI",2076,"Collège Churchill","","WI",2076,"COLLÈGE CHURCHILL"]
[633,151,"WI",1701,"Daniel Mcintyre Collegiate Institute","","WI",1701,"DANIEL MCINTYRE COLLEGIATE INSTITUTE"]
[634,151,"WI",1775,"David Livingstone School","","WI",1775,"DAVID LIVINGSTONE SCHOOL"]
[635,151,"WI",1767,"Dufferin School","","WI",1767,"DUFFERIN SCHOOL"]
[636,151,"WI",1022,"Earl Grey School","","WI",1022,"EARL GREY SCHOOL"]
[637,151,"WI",1920,"École La Vérendrye","","WI",1920,"ÉCOLE LA VÉRENDRYE"]
[638,151,"WI",1744,"École Lansdowne","","WI",1744,"ÉCOLE LANSDOWNE"]
[639,151,"WI",1046,"École Sacré-Coeur","","WI",1046,"ÉCOLE SACRÉ-COEUR"]
[640,151,"WI",1759,"École Sec. Kelvin High School","","WI",1759,"ÉCOLE SECONDAIRE KELVIN HIGH SCHOOL"]
[641,151,"WI",1626,"École Sir William Osler","","WI",1626,"ÉCOLE SIR WILLIAM OSLER"]
[642,151,"WI",2330,"École Waterford Springs School","","WI",2330,"ÉCOLE WATERFORD SPRINGS SCHOOL"]
[643,151,"WI",1867,"Elmwood High",{"$f":"IF(D648=H648,\"\",\"x\")","v":""},"WI",1867,"ELMWOOD HIGH"]
[644,151,"WI",1854,"Faraday School","","WI",1854,"FARADAY SCHOOL"]
[645,151,"WI",1436,"Fort Rouge School","","WI",1436,"FORT ROUGE SCHOOL"]
[646,151,"WI",1166,"Garden Grove School","","WI",1166,"GARDEN GROVE SCHOOL"]
[647,151,"WI",1305,"General Wolfe School","","WI",1305,"GENERAL WOLFE SCHOOL"]
[648,151,"WI",1830,"George V School","","WI",1830,"GEORGE V SCHOOL"]
[649,151,"WI",1496,"Gladstone School","","WI",1496,"GLADSTONE SCHOOL"]
[{"$f":"A654+1","v":650},151,"WI",1196,"Glenelm School","","WI",1196,"GLENELM SCHOOL"]
[651,151,"WI",1440,"Gordon Bell High","","WI",1440,"GORDON BELL HIGH SCHOOL"]
[652,151,"WI",1218,"Grant Park High","","WI",1218,"GRANT PARK HIGH SCHOOL"]
[653,151,"WI",1431,"Greenway School","","WI",1431,"GREENWAY SCHOOL"]
[654,151,"WI",1330,"Grosvenor School","","WI",1330,"GROSVENOR SCHOOL"]
[655,151,"WI",1001,"Harrow School","","WI",1001,"HARROW SCHOOL"]
[656,151,"WI",1625,"Hugh John Macdonald School","","WI",1625,"HUGH JOHN MACDONALD SCHOOL"]
[657,151,"WI",1397,"Inkster School","","WI",1397,"INKSTER SCHOOL"]
[658,151,"WI",1211,"Interdivisional Student Services","","WI",1211,"INTERDIVISIONAL STUDENT SERVICES"]
[659,151,"WI",1569,"Isaac Brock School","","WI",1569,"ISAAC BROCK SCHOOL"]
[660,151,"WI",1331,"Isaac Newton School","","WI",1331,"ISAAC NEWTON SCHOOL"]
[661,151,"WI",1120,"J. B. Mitchell School","","WI",1120,"J. B. MITCHELL SCHOOL"]
[662,151,"WI",1814,"John M. King School","","WI",1814,"JOHN M. KING SCHOOL"]
[663,151,"WI",1665,"Kent Road School","","WI",1665,"KENT ROAD SCHOOL"]
[664,151,"WI",1210,"King Edward Community School","","WI",1210,"KING EDWARD COMMUNITY SCHOOL"]
[665,151,"WI",1812,"Laura Secord School","","WI",1812,"LAURA SECORD SCHOOL"]
[666,151,"WI",1695,"Lord Nelson School","","WI",1695,"LORD NELSON SCHOOL"]
[667,151,"WI",1392,"Lord Roberts Community School","","WI",1392,"LORD ROBERTS COMMUNITY SCHOOL"]
[668,151,"WI",1137,"Lord Selkirk School","","WI",1137,"LORD SELKIRK SCHOOL"]
[669,151,"WI",1479,"Luxton School","","WI",1479,"LUXTON SCHOOL"]
[670,151,"WI",1822,"Machray School","","WI",1822,"MACHRAY SCHOOL"]
[671,151,"WI",1966,"Meadows West School","","WI",1966,"MEADOWS WEST SCHOOL"]
[672,151,"WI",1306,"Montcalm School","","WI",1306,"MONTCALM SCHOOL"]
[673,151,"WI",1745,"Montrose School","","WI",1745,"MONTROSE SCHOOL"]
[674,151,"WI",1866,"Mulvey School","","WI",1866,"MULVEY SCHOOL"]
[675,151,"WI",2079,"Niji Mahkwa School","","WI",2079,"NIJI MAHKWA SCHOOL"]
[676,151,"WI",1685,"Norquay School","","WI",1685,"NORQUAY SCHOOL"]
[677,151,"WI",1025,"Pinkham School","","WI",1025,"PINKHAM SCHOOL"]
[678,151,"WI",2077,"Prairie Rose Elementary School","","WI",2077,"PRAIRIE ROSE ELEMENTARY SCHOOL"]
[679,151,"WI",1293,"Principal Sparling School","","WI",1293,"PRINCIPAL SPARLING SCHOOL"]
[680,151,"WI",1675,"Queenston School","","WI",1675,"QUEENSTON SCHOOL"]
[681,151,"WI",1547,"R.B. Russell Vocational School","","WI",1547,"R.B. RUSSELL VOCATIONAL SCHOOL"]
[682,151,"WI",1363,"Ralph Brown School","","WI",1363,"RALPH BROWN SCHOOL"]
[683,151,"WI",1459,"River Elm School","","WI",1459,"RIVER ELM SCHOOL"]
[684,151,"WI",1297,"River Heights School","","WI",1297,"RIVER HEIGHTS SCHOOL"]
[685,151,"WI",1846,"Riverview School","","WI",1846,"RIVERVIEW SCHOOL"]
[686,151,"WI",1921,"Robert H. Smith School","","WI",1921,"ROBERT H. SMITH SCHOOL"]
[687,151,"WI",1720,"Robertson School","","WI",1720,"ROBERTSON SCHOOL"]
[688,151,"WI",1419,"Rockwood School","","WI",1419,"ROCKWOOD SCHOOL"]
[689,151,"WI",1537,"Sargent Park School","","WI",1537,"SARGENT PARK SCHOOL"]
[690,151,"WI",1134,"Shaughnessy Park School","","WI",1134,"SHAUGHNESSY PARK SCHOOL"]
[691,151,"WI",1646,"Sisler High School","","WI",1646,"SISLER HIGH SCHOOL"]
[692,151,"WI",2018,"Sister Macnamara School","","WI",2018,"SISTER MACNAMARA SCHOOL"]
[693,151,"WI",1606,"St. John'S High","","WI",1606,"ST. JOHN'S HIGH SCHOOL"]
[694,151,"WI",1985,"Stanley Knowles School","","WI",1985,"STANLEY KNOWLES SCHOOL"]
[695,151,"WI",1490,"Strathcona School","","WI",1490,"STRATHCONA SCHOOL"]
[696,151,"WI",1796,"Tech-Vocational High","","WI",1796,"TECH-VOCATIONAL HIGH SCHOOL"]
[697,151,"WI",1654,"Tyndall Park Community School","","WI",1654,"TYNDALL PARK COMMUNITY SCHOOL"]
[698,151,"WI",1480,"Victoria-Albert School","","WI",1480,"VICTORIA-ALBERT SCHOOL"]
[699,151,"WI",1251,"Wellington School","","WI",1251,"WELLINGTON SCHOOL"]
[700,151,"WI",1280,"Weston School","","WI",1280,"WESTON SCHOOL"]
[701,151,"WI",1357,"William Whyte School","","WI",1357,"WILLIAM WHYTE SCHOOL"]
[702,151,"WI",1497,"Winnipeg Adult Education Centre","","WI",1497,"WINNIPEG ADULT EDUCATION CENTRE"]
[703,151,"WI",1418,"Wolseley School","","WI",1418,"WOLSELEY SCHOOL"]
[704,113,"XW",1429,"F. W. Gilbert School","","XW",1429,"F. W. GILBERT SCHOOL"]
[705,113,"XW",1905,"Pinawa Secondary School","","XW",1905,"PINAWA SECONDARY SCHOOL"]
[]
[]
[]
[]
[]
[]
[]
[]
[]
[]
[]
[]
[]
[]
[]
[]
[]
[null,null,null,null,null,null,null,null,null,1,"Press arrow for School Name  --------------- >"]
[null,null,null,null,null,null,null,null,null,2,{"$f":"IF(E744=0,\"\",PROPER(E744))","v":""}]
[null,null,null,null,null,null,null,null,null,3,""]
[null,null,null,null,null,null,null,null,null,4,""]
[null,null,null,null,null,null,null,null,null,5,""]
[null,null,null,null,null,null,null,null,null,6,""]
[null,null,null,null,null,null,null,null,null,7,""]
[null,null,null,null,null,null,null,null,null,8,""]
[null,null,null,null,null,null,null,null,null,9,""]
[null,null,null,null,null,null,null,null,null,10,""]
[null,null,null,null,null,null,null,null,null,11,""]
[null,null,null,null,null,null,null,null,null,12,""]
[null,null,"SFB",null,null,null,null,null,null,13,""]
[null,null,"CODE",null,null,null,null,null,null,14,""]
[null,null,null,null,null,null,null,null,null,15,""]
[null,null,"SFB","Code","School Name",null,null,null,null,16,""]
[null,null,null,null,null,null,null,null,null,17,""]
[null,null,null,null,null,null,null,null,null,18,""]
[null,null,null,null,null,null,null,null,null,19,""]
[null,null,null,null,null,null,null,null,null,20,""]
[null,null,null,null,null,null,null,null,null,21,""]
[null,null,null,null,null,null,null,null,null,22,""]
[null,null,null,null,null,null,null,null,null,23,""]
[null,null,null,null,null,null,null,null,null,24,""]
[null,null,null,null,null,null,null,null,null,25,""]
[null,null,null,null,null,null,null,null,null,26,""]
[null,null,null,null,null,null,null,null,null,27,""]
[null,null,null,null,null,null,null,null,null,28,""]
[null,null,null,null,null,null,null,null,null,29,""]
[null,null,null,null,null,null,null,null,null,30,""]
[null,null,null,null,null,null,null,null,null,31,""]
[null,null,null,null,null,null,null,null,null,32,""]
[null,null,null,null,null,null,null,null,null,33,""]
[null,null,null,null,null,null,null,null,null,34,{"$f":"IF(E776=0,\"\",PROPER(E776))","v":""}]
[null,null,null,null,null,null,null,null,null,35,""]
[null,null,null,null,null,null,null,null,null,36,""]
[null,null,null,null,null,null,null,null,null,37,""]
[null,null,null,null,null,null,null,null,null,38,""]
[null,null,null,null,null,null,null,null,null,39,""]
[null,null,null,null,null,null,null,null,null,40,""]
[null,null,null,null,null,null,null,null,null,41,""]
[null,null,null,null,null,null,null,null,null,42,""]
[null,null,null,null,null,null,null,null,null,43,""]
[null,null,null,null,null,null,null,null,null,44,""]
[null,null,null,null,null,null,null,null,null,45,""]
[null,null,null,null,null,null,null,null,null,46,""]
[null,null,null,null,null,null,null,null,null,47,""]
[null,null,null,null,null,null,null,null,null,48,""]
[null,null,null,null,null,null,null,null,null,49,""]
[null,null,null,null,null,null,null,null,null,50,""]
[null,null,null,null,null,null,null,null,null,51,""]
[null,null,null,null,null,null,null,null,null,52,""]
[null,null,null,null,null,null,null,null,null,53,""]
[null,null,null,null,null,null,null,null,null,54,""]
[null,null,null,null,null,null,null,null,null,55,""]
[null,null,null,null,null,null,null,null,null,56,""]
[null,null,null,null,null,null,null,null,null,57,""]
[null,null,null,null,null,null,null,null,null,58,""]
[null,null,null,null,null,null,null,null,null,59,""]
[null,null,null,null,null,null,null,null,null,60,""]
[null,null,null,null,null,null,null,null,null,61,""]
[null,null,null,null,null,null,null,null,null,62,""]
[null,null,null,null,null,null,null,null,null,63,""]
[null,null,null,null,null,null,null,null,null,64,""]
[null,null,null,null,null,null,null,null,null,65,""]
[null,null,null,null,null,null,null,null,null,66,{"$f":"IF(E808=0,\"\",PROPER(E808))","v":""}]
[null,null,null,null,null,null,null,null,null,67,""]
[null,null,null,null,null,null,null,null,null,68,""]
[null,null,null,null,null,null,null,null,null,69,""]
[null,null,null,null,null,null,null,null,null,70,""]
[null,null,null,null,null,null,null,null,null,71,""]
[null,null,null,null,null,null,null,null,null,72,""]
[null,null,null,null,null,null,null,null,null,73,""]
[null,null,null,null,null,null,null,null,null,74,""]
[null,null,null,null,null,null,null,null,null,75,""]
[null,null,null,null,null,null,null,null,null,76,""]
[null,null,null,null,null,null,null,null,null,77,""]
[null,null,null,null,null,null,null,null,null,78,""]
[null,null,null,null,null,null,null,null,null,79,""]
[null,null,null,null,null,null,null,null,null,80,""]
[null,null,null,null,null,null,null,null,null,81,""]
[null,null,null,null,null,null,null,null,null,82]